{"text_format":"3","workbook":"xlsx","n_sheets":18,"sheets":["Инструкция","Титульный","Параметры","Территории","Показатели","Товары и услуги","Потребительские характеристики","Инвестиционная программа","Изменения инвест. программы","Ссылки на публикации","Сведения об изменениях","Комментарий","Ошибки и предупреждения","Columns","Rows","RegistryMunicipal","Reference","SheetList"],"not_rendered":{"images":18,"macros":1,"external_links":5,"defined_names":179},"read":"whole","date_system":"1900"}

{"sheet":"Инструкция","index":0,"n_rows":241,"n_cols":16,"rows_kept":241,"merged":[[1,1,1,7],[2,1,2,2],[4,1,4,24],[6,4,22,23],[25,5,25,12],[25,15,25,23],[26,5,26,12],[26,15,26,23],[27,15,27,23],[43,4,61,23],[63,4,63,23],[64,4,64,5],[64,6,64,10],[65,4,65,5],[65,6,65,9],[81,4,99,23],[100,4,100,23],[101,5,103,23],[104,5,104,23],[105,6,110,23],[111,6,113,23],[114,6,115,23],[116,6,117,23],[118,6,118,23],[119,6,120,23],[121,6,123,23],[124,6,124,23],[125,6,125,23],[126,6,127,23],[128,6,129,23],[130,6,130,23],[131,6,132,23],[133,6,134,23],[135,6,136,23],[137,6,140,23],[141,6,142,23],[143,6,145,23],[146,6,147,23],[148,6,149,23],[150,6,152,23],[153,6,155,23],[156,6,157,23],[158,6,159,23],[160,6,161,23],[162,6,165,23],[166,6,167,23],[168,6,168,23],[169,6,169,23],[170,6,170,23],[171,6,173,23],[174,6,176,23],[177,6,179,23],[180,6,181,23],[182,6,182,23],[183,6,183,23],[184,6,185,23],[186,6,187,23],[188,6,189,23],[190,6,190,23],[191,6,195,23],[196,6,196,23],[197,6,198,23],[199,6,199,23],[200,6,203,23],[204,6,204,23],[205,6,207,23],[208,6,209,23],[210,6,210,23],[211,6,212,23],[213,4,214,23],[215,5,224,23],[225,5,225,18],[227,5,227,23],[238,1,238,24],[239,1,239,24],[240,4,240,16]]}
[]
[null,{"$f":"\"Код шаблона: \" & Getcode()","v":"Код шаблона: ELPASS.JKH.OPEN.INFO.BALANCE.WARM"}]
[null,{"$f":"\"Версия \" & Getversion() & \" от \" & GetTemplateDate()","v":"Версия 1.0 от 01.10.2017"}]
[]
[null,{"$f":"GetTemplateName()","v":"Показатели, подлежащие раскрытию теплоснабжающими, теплосетевыми организациями"}]
[]
[{"$nulls":4},"• На рабочем месте должна быть установлена полная версия приложения Microsoft Office Excel 2007 SP3, 2010, 2013, 2016. Microsoft Office Excel 2003 или иные офисные пакеты не поддерживаются.\n\n• Для корректной работы отчёта требуется включить макросы и выбрать низкий уровень безопасности:\nВ меню MS Excel 2007/2010: Параметры Excel | Центр управления безопасностью | Параметры центра управления безопасностью | Параметры макросов | Включить все макросы | ОК\n\n• Не рекомендуется снимать защиту с листов и каким-либо образом модифицировать защищаемые формулы и расчётные поля. В случае внесения несанкционированных изменений отчёт будет отклонён системой\n\n• При сохранении не следует выбирать формат XLSX (Книга Excel), так как в указанном формате макросы, необходимые для работы отчёта, безвозвратно удаляются, а также форматы XLS или XLSB. Должен использоваться формат XLSM\n\n"]
{"$rows_empty":18}
[{"$nulls":4},"A"," - не обязательные для заполнения",{"$nulls":8},"A"," - обязательные для заполнения"]
[{"$nulls":4},"A"," - заполняемые автоматически",{"$nulls":8},"A"," - незаполняемые поля"]
{"$rows_empty":16}
[{"$nulls":4},"• При сохранении отчета осуществляется проверка корректности данных, в том числе на наличие значений в ячейках, обязательных для заполнения\n\n• Если какая-то ячейка не удовлетворяет условию проверки, на лист «Ошибки и предупреждения» добавляется гиперссылка на данную ячейку и указывается причина ошибки\n\n• В колонке «Статус» для каждого сообщения возможны 2 значения: ошибка и предупреждение\n\n• При наличии сообщений со статусом «Ошибка» отчет будет отклонён системой\n\n• Сообщения со статусом «Предупреждение» носят информационный характер, и такой отчет будет принят системой"]
{"$rows_empty":19}
[{"$nulls":4},"Служба технической поддержки группы компаний \"Экстрим\""]
[{"$nulls":4},"E-mail:",null,"rek@xrm.ru"]
[{"$nulls":4},"Телефон:",null,"(343) 2222-139"]
{"$rows_empty":15}
[{"$nulls":4},"• На листах «Титульный», «Параметры» и «Территории» обязательно заполните все ячейки голубого цвета. \nДалее нажмите кнопку «Начать заполнение отчета». Отобразятся листы для заполнения.\n\n• Если в поле, обязательном для заполнении, для вашей организации показатель отсутствует, введите в поле «0» (для числовых показателей) и «-» (для текстовых).\n\n• Вводите дату непосредственно в ячейку в формате - 'ДД.ММ.ГГГГ'.\n\n• Для добавления гиперссылки дважды щелкните левой кнопкой мыши по ячейке и только после этого  вставьте скопированный элемент.\n\n• Добавьте комментарии к раскрываемым сведениям на листе «Комментарии» (при необходимости).\n"]
{"$rows_empty":18}
[{"$nulls":4},"Данный шаблон разработан в соответствии с:"]
[{"$nulls":4},"   •","Постановлением Правительства РФ от 5 июля 2013 г. № 570 (в ред. от 31.08.2016 № 876) \"О стандартах раскрытия информации теплоснабжающими организациями, теплосетевыми организациями и органами регулирования\":"]
[]
[]
[{"$nulls":5},"II. Стандарты раскрытия информации регулируемыми организациями"]
[{"$nulls":6},"15. Регулируемой организацией подлежит раскрытию информация:\nв) об основных показателях финансово-хозяйственной деятельности регулируемой организации, включая структуру основных производственных затрат (в части регулируемых видов деятельности);\nг) об основных потребительских характеристиках регулируемых товаров и услуг регулируемой организации;\nд) об инвестиционных программах регулируемой организации и отчетах об их реализации;"]
[]
[]
[]
[]
[]
[{"$nulls":6},"19. Информация об основных показателях финансово-хозяйственной деятельности регулируемой организации, включая структуру основных производственных затрат (в части регулируемых видов деятельности), содержит сведения:"]
[]
[]
[{"$nulls":6},"а) о выручке от регулируемого вида деятельности (тыс. рублей) с разбивкой по видам деятельности;"]
[]
[{"$nulls":6},"б) о себестоимости производимых товаров (оказываемых услуг) по регулируемому виду деятельности (тыс. рублей), включая:"]
[]
[{"$nulls":6},"расходы на покупаемую тепловую энергию (мощность), теплоноситель;"]
[{"$nulls":6},"расходы на топливо с указанием по каждому виду топлива стоимости (за единицу объема), объема и способа его приобретения, стоимости его доставки;"]
[]
[{"$nulls":6},"расходы на покупаемую электрическую энергию (мощность), используемую в технологическом процессе (с указанием средневзвешенной стоимости 1 ), и объем приобретения электрической энергии;"]
[]
[]
[{"$nulls":6},"расходы на приобретение холодной воды, используемой в технологическом процессе;"]
[{"$nulls":6},"расходы на химические реагенты, используемые в технологическом процессе;"]
[{"$nulls":6},"расходы на оплату труда и отчисления на социальные нужды основного производственного персонала;"]
[]
[{"$nulls":6},"расходы на оплату труда и отчисления на социальные нужды административно-управленческого персонала;"]
[]
[{"$nulls":6},"расходы на амортизацию основных производственных средств;"]
[{"$nulls":6},"расходы на аренду имущества, используемого для осуществления регулируемого вида деятельности;"]
[]
[{"$nulls":6},"общепроизводственные расходы, в том числе отнесенные к ним расходы на текущий и капитальный ремонт;"]
[]
[{"$nulls":6},"общехозяйственные расходы, в том числе отнесенные к ним расходы на текущий и капитальный ремонт;"]
[]
[{"$nulls":6},"расходы на капитальный и текущий ремонт основных производственных средств (в том числе информация об объемах товаров и услуг, их стоимости и способах приобретения у тех организаций, сумма оплаты услуг которых превышает 20 процентов суммы расходов по указанной статье расходов);"]
[]
[]
[]
[{"$nulls":6},"прочие расходы, которые подлежат отнесению на регулируемые виды деятельности в соответствии с законодательством Российской Федерации;"]
[]
[{"$nulls":6},"в) о чистой прибыли, полученной от регулируемого вида деятельности, с указанием размера ее расходования на финансирование мероприятий, предусмотренных инвестиционной программой регулируемой организации (тыс. рублей);"]
[]
[]
[{"$nulls":6},"г) об изменении стоимости основных фондов, в том числе за счет их ввода в эксплуатацию (вывода из эксплуатации), а также стоимости их переоценки (тыс. рублей);"]
[]
[{"$nulls":6},"д) о валовой прибыли (убытках) от реализации товаров и оказания услуг по регулируемому виду деятельности (тыс. рублей);"]
[]
[{"$nulls":6},"е) о годовой бухгалтерской отчетности, включая бухгалтерский баланс и приложения к нему (раскрывается регулируемой организацией, выручка от регулируемой деятельности которой превышает 80 процентов совокупной выручки за отчетный год);"]
[]
[]
[{"$nulls":6},"ж) об установленной тепловой мощности объектов основных фондов, используемых для осуществления регулируемых видов деятельности, в том числе по каждому источнику тепловой энергии (Гкал/ч);"]
[]
[]
[{"$nulls":6},"з) о тепловой нагрузке по договорам, заключенным в рамках осуществления регулируемых видов деятельности (Гкал/ч);"]
[]
[{"$nulls":6},"и) об объеме вырабатываемой регулируемой организацией тепловой энергии в рамках осуществления регулируемых видов деятельности (тыс. Гкал);"]
[]
[{"$nulls":6},"к) об объеме приобретаемой регулируемой организацией тепловой энергии в рамках осуществления регулируемых видов деятельности (тыс. Гкал);"]
[]
[{"$nulls":6},"л) об объеме тепловой энергии, отпускаемой потребителям, по договорам, заключенным в рамках осуществления регулируемых видов деятельности, в том числе определенном по приборам учета и расчетным путем (нормативам потребления коммунальных услуг) (тыс. Гкал);"]
[]
[]
[]
[{"$nulls":6},"м) о нормативах технологических потерь при передаче тепловой энергии, теплоносителя по тепловым сетям, утвержденных уполномоченным органом (Ккал/ч.мес.);"]
[]
[{"$nulls":6},"н) о фактическом объеме потерь при передаче тепловой энергии (тыс. Гкал);"]
[{"$nulls":6},"о) о среднесписочной численности основного производственного персонала (человек);"]
[{"$nulls":6},"п) о среднесписочной численности административно-управленческого персонала (человек);"]
[{"$nulls":6},"р) об удельном расходе условного топлива на единицу тепловой энергии, отпускаемой в тепловую сеть, с разбивкой по источникам тепловой энергии, используемым для осуществления регулируемых видов деятельности (кг у. т./Гкал);"]
[]
[]
[{"$nulls":6},"с) об удельном расходе электрической энергии на производство (передачу) тепловой энергии на единицу тепловой энергии, отпускаемой потребителям по договорам, заключенным в рамках осуществления регулируемых видов деятельности ();"]
[]
[]
[{"$nulls":6},"т) об удельном расходе холодной воды на производство (передачу) тепловой энергии на единицу тепловой энергии, отпускаемой потребителям по договорам, заключенным в рамках осуществления регулируемых видов деятельности (куб. м/Гкал)"]
[]
[]
[{"$nulls":6},"20. Информация об основных потребительских характеристиках регулируемых товаров и услуг регулируемой организации содержит сведения:"]
[]
[{"$nulls":6},"а) о количестве аварий на тепловых сетях (единиц на километр);"]
[{"$nulls":6},"б) о количестве аварий на источниках тепловой энергии (единиц на источник);"]
[{"$nulls":6},"в) о показателях надежности и качества, установленных в соответствии с законодательством Российской Федерации;"]
[]
[{"$nulls":6},"г) о доле числа исполненных в срок договоров о подключении (технологическом присоединении);"]
[]
[{"$nulls":6},"д) о средней продолжительности рассмотрения заявок на подключение (технологическое присоединение) (дней);"]
[]
[{"$nulls":6},"е) о выводе источников тепловой энергии, тепловых сетей из эксплуатации;"]
[{"$nulls":6},"ж) об основаниях приостановления, ограничения и прекращения режима потребления тепловой энергии в случаях, предусмотренных пунктами 70 и 76 Правил организации теплоснабжения в Российской Федерации, утвержденных постановлением Правительства Российской Федерации от 8 августа 2012 г. N 808 \"Об организации теплоснабжения в Российской Федерации и о внесении изменений в некоторые акты Правительства Российской Федерации\"."]
[]
[]
[]
[]
[{"$nulls":6},"з) о внесении изменений в инвестиционную программу. "]
[{"$nulls":6},"21. Информация об инвестиционных программах регулируемой организации содержит сведения:"]
[]
[{"$nulls":6},"а) о наименовании, дате утверждения и цели инвестиционной программы;"]
[{"$nulls":6},"б) о наименовании органа исполнительной власти субъекта Российской Федерации, утвердившего инвестиционную программу (органа местного самоуправления в случае передачи соответствующего полномочия), и о наименовании органа местного самоуправления, согласовавшего инвестиционную программу;"]
[]
[]
[]
[{"$nulls":6},"в) о сроках начала и окончания реализации инвестиционной программы;"]
[{"$nulls":6},"г) о потребностях в финансовых средствах, необходимых для реализации инвестиционной программы, в том числе с разбивкой по годам, мероприятиям и источникам финансирования инвестиционной программы (тыс. рублей);"]
[]
[]
[{"$nulls":6},"д) о плановых значениях целевых показателей инвестиционной программы (с разбивкой по мероприятиям);"]
[]
[{"$nulls":6},"е) о фактических значениях целевых показателей инвестиционной программы;"]
[{"$nulls":6},"ж) об использовании инвестиционных средств за отчетный год с разбивкой по кварталам, мероприятиям и источникам финансирования инвестиционной программы (тыс. рублей);"]
[]
[{"$nulls":4},"Обязательность раскрытия информации и сроки раскрытия устанавливаются в соответствие с п.11. Постановления Правительства РФ от 5 июля 2013 г. N 570: "]
[]
[{"$nulls":5},"11. Регулируемые организации в течение 10 дней со дня размещения информации на своем официальном сайте в сети \"Интернет\" сообщают в орган исполнительной власти субъекта Российской Федерации в области государственного регулирования цен (тарифов) о раскрытии соответствующей информации с указанием адреса страницы сайта в сети \"Интернет\", на которой размещена эта информация.\nРегулируемые организации в течение 10 дней со дня опубликования информации в официальных печатных изданиях в случае, предусмотренном пунктом 10 настоящего документа, сообщают в орган исполнительной власти субъекта Российской Федерации в области государственного регулирования цен (тарифов) о раскрытии соответствующей информации с указанием наименования, номера и даты официального печатного издания, в котором опубликована эта информация."]
{"$rows_empty":16}
[{"$nulls":4},"Гиперссылки на листах вводите, не нарушая цвет ячейки (если копируете гиперссылку из браузера, то выполните двойной щелчок левой кнопки мыши по ячейке и только после этого можете вставить скопированный элемент)."]
[]
[]
[]
[]
[]
[null,{"$f":"IF(GetMode()=\"DEBUG\", \"Режим отладки\", \"\")","v":""}]
[null,"2017 © Общество с ограниченной ответственностью \"Элвинг\""]
[{"$nulls":4},"http://elpass.ru"]

{"sheet":"Титульный","index":1,"n_rows":45,"n_cols":5,"rows_kept":45,"merged":[[3,3,3,4],[9,3,9,4],[17,3,17,4],[22,3,22,4],[26,3,26,4],[32,3,32,4],[38,3,38,4]]}
[]
[]
[{"$nulls":3},{"$f":"Getcode()","v":"ELPASS.JKH.OPEN.INFO.BALANCE.WARM"},{"$f":"Инструкция!version","v":"Версия 1.0 от 01.10.2017"}]
[{"$nulls":3},{"$f":"GetTemplateName()","v":"Показатели, подлежащие раскрытию теплоснабжающими, теплосетевыми организациями"}]
[]
[{"$nulls":3},"Субъект РФ","Республика Башкортостан"]
[]
[{"$nulls":3},"Отчетный период","2017"]
[]
[{"$nulls":3},"Сведения о регулируемой организации"]
[{"$nulls":3},"Полное наименование организации","ООО \"Мечел-энерго\""]
[{"$nulls":3},"Сокращенное наименование организации","ООО \"Мечел-энерго\""]
[{"$nulls":3},"ОГРН","1027700016706"]
[{"$nulls":3},"ИНН","7722245108"]
[{"$nulls":3},"КПП","025643001"]
[{"$nulls":3},"Режим налогообложения","Общий"]
[]
[{"$nulls":3},"Сведения о филиале"]
[{"$nulls":3},"Является ли данное юридическое лицо филиалом другой организации",""]
[{"$nulls":3},"Наименование филиала"]
[{"$nulls":3},"КПП филиала",""]
[]
[{"$nulls":3},"Адрес регулируемой организации"]
[{"$nulls":3},"Юридический адрес","454047, Российская Федерация, Челябинская область, г. Челябинск, ул. 2-я Павелецкая, д.14"]
[{"$nulls":3},"Почтовый адрес","453500, Республика Башкортостан, г. Белорецк, ул. Блюхер, д.1"]
[]
[{"$nulls":3},"Руководитель регулируемой организации"]
[{"$nulls":3},"Фамилия","Петров "]
[{"$nulls":3},"Имя","Евгений"]
[{"$nulls":3},"Отчество (при наличии)","Вячеславович"]
[{"$nulls":3},"Контактный телефон","8-34792-4-14-72"]
[]
[{"$nulls":3},"Главный бухгалтер регулируемой организации"]
[{"$nulls":3},"Фамилия","Якупова "]
[{"$nulls":3},"Имя","Елена "]
[{"$nulls":3},"Отчество (при наличии)","Диасовна"]
[{"$nulls":3},"Контактный телефон","8-34792-4-14-72"]
[]
[{"$nulls":3},"Должностное лицо, ответственное за составление формы"]
["L11.1","Ответственный.ФИО",null,"Фамилия","Климова"]
[{"$nulls":3},"Имя","Ольга"]
[{"$nulls":3},"Отчество (при наличии)","Дмитриевна"]
["L11.2","Ответственный.Должность",null,"Должность","ведущий экономист"]
["L11.3","Ответственный.Телефон",null,"Контактный телефон","8-34792-4-14-72"]
["L11.4","Ответственный. E-Mail",null,"e-mail","oklimova@belmk.ru"]

{"sheet":"Параметры","index":2,"n_rows":30,"n_cols":5,"rows_kept":30,"merged":[[3,3,5,4]]}
[]
[]
[{"$nulls":3},{"$f":"Getcode()","v":"ELPASS.JKH.OPEN.INFO.BALANCE.WARM"},{"$f":"Инструкция!version","v":"Версия 1.0 от 01.10.2017"}]
[{"$nulls":3},{"$f":"GetTemplateName()","v":"Показатели, подлежащие раскрытию теплоснабжающими, теплосетевыми организациями"}]
[]
[]
[]
[{"$nulls":3},"Тип отчета","Первичное раскрытие информации"]
[]
[{"$nulls":3},"Вид регулируемой деятельности","производство тепловой энергии (мощности) не в режиме комбинированной выработки электрической и тепловой энергии источниками тепловой энергии"]
[{"$nulls":3},"Укажите порядковый номер отчета",2]
[]
[{"$nulls":3},"Регулируемая организация осуществляет сдачу годового бухгалтерского баланса в налоговые органы","да"]
[{"$nulls":3},"Дата направления годового бухгалтерского баланса в налоговые органы","2018-02-28"]
[]
[{"$nulls":3},"Превышает ли выручка от регулируемой деятельности 80% совокупной выручки за отчетный год","да"]
[{"$nulls":3},"Наличие товаров и услуг, приобретенных у организаций, сумма оплаты услуг которых превышает 20% суммы расходов по статье расходов на капитальный и текущий ремонт основных производственных средств","нет"]
[]
[{"$nulls":3},"По решению организации информация раскрыта на ее официальном сайте в сети Интернет","да"]
[{"$nulls":3},"Отсутствует Интернет в границах территории муниципальных образований, где организация осуществляет регулируемые услуги","нет"]
[{"$nulls":3},"Организация выполняет инвестиционную программу","нет"]
[]
[{"$nulls":3},"Наименование инвестиционной программы"]
[{"$nulls":3},"Дата утверждения инвестиционной программы"]
[{"$nulls":3},"Дата начала реализации инвестиционной программы"]
[{"$nulls":3},"Дата окончания реализации инвестиционной программы"]
[{"$nulls":3},"Цели инвестиционной программы"]
[{"$nulls":3},"Наименование органа исполнительной власти субъекта РФ, утвердившего инвестиционную программу (органа местного самоуправления в случае передачи полномочий)"]
[{"$nulls":3},"Наименование органа местного самоуправления,согласовавшего инвестиционную программу"]
[{"$nulls":3},"Вносились ли изменения в инвестиционную прогамму"]

{"sheet":"Территории","index":3,"n_rows":10,"n_cols":35,"rows_kept":10,"merged":[[0,11,0,12],[2,5,2,12],[3,5,4,12],[5,5,5,7],[5,9,5,11],[6,5,6,6],[6,8,6,10],[7,5,8,5],[7,6,8,6],[7,7,8,7],[8,8,8,9],[8,11,8,12]]}
[{"$nulls":5},{"$f":"Getcode()","v":"ELPASS.JKH.OPEN.INFO.BALANCE.WARM"},{"$nulls":5},{"$f":"Инструкция!version","v":"Версия 1.0 от 01.10.2017"}]
[]
[{"$nulls":5},"Информация о территориях действия тарифов (оказания услуг) регулируемой организации "]
[{"$nulls":5},"ООО \"Мечел-энерго\""]
[]
[{"$nulls":5},"Городской округ / муниципальный район",{"$nulls":3},"Муниципальное образование"]
[{"$nulls":5},"№ п/п",null,"Наименование","№ п/п",null,null,"Наименование","ОКТМО","Имя диапазона"]
[{"$nulls":3},"1","МР",null,1,"Белорецкий муниципальный район","МО",null,1,"Город Белорецк",80611101,null,"MO_LIST_12",{"$nulls":12},1]
[{"$nulls":11},"Добавить МО",{"$nulls":22},"add_MO_range"]
[{"$nulls":7},"Добавить ГО / МР",{"$nulls":22},"add_MR_range"]

{"sheet":"Показатели","index":4,"n_rows":71,"n_cols":9,"rows_kept":71,"merged":[[3,3,5,7],[6,3,6,7],[17,2,21,2],[17,3,21,3]]}
["f"]
[]
[{"$nulls":3},{"$f":"Getcode()","v":"ELPASS.JKH.OPEN.INFO.BALANCE.WARM"},{"$nulls":3},{"$f":"Инструкция!version","v":"Версия 1.0 от 01.10.2017"}]
[{"$nulls":3},"Информация об основных показателях финансово-хозяйственной деятельности регулируемой организации, включая структуру основных производственных затрат (в части регулируемых видов деятельности)"]
[]
[]
[{"$nulls":3},"ООО \"Мечел-энерго\""]
[]
[{"$nulls":3},"№ п/п","Наименование показателя","Значение","Единица измерения","Комментарии"]
[{"$nulls":3},1,2,3,4,5]
[{"$nulls":3},"1","Выручка от регулируемого вида деятельности с разбивкой по видам деятельности:",{"$f":"SUM(F12:F13)","v":{"v":97788.08234,"d":"97788.08"}},"тыс. руб."]
[{"$nulls":3},"1.1","производство тепловой энергии (мощности) не в режиме комбинированной выработки электрической и тепловой энергии источниками тепловой энергии",{"$f":"'[3]калькуляция (%,ДЗ)'!$P$230","v":{"v":97788.08234,"d":"97788.08"}},"тыс. руб."]
[{"$nulls":4},"Добавить вид деятельности",{"$nulls":3},"add_TYPE_range"]
[{"$nulls":3},"2","Себестоимость производимых товаров (оказываемых услуг) по регулируемому виду деятельности, включая:",{"$f":"SUM(F15:F16,F24,F27:F35,F38,F41:F42)","v":{"v":93211.4095871307,"d":"93211.41"}},"тыс. руб."]
[{"$nulls":3},"2.1","Расходы на покупаемую тепловую энергию (мощность), теплоноситель",{"v":0,"d":"0.00"},"тыс. руб."]
[{"$nulls":3},"2.2","Расходы на топливо",{"$f":"SUM(IF(List10_FuelFlag=\"f\",List10_Fuel))","v":{"v":59512.91901,"d":"59512.92"}},"тыс. руб."]
[{"$nulls":3},"2.2.0"]
[null,null,"ы","2.2.1","природный газ",{"$f":"F19*F20+F21","v":{"v":59512.91901,"d":"59512.92"}},"f"]
[{"$nulls":4},{"$f":"D18 & \".1 Стоимость за единицу объема\"","v":"2.2.1.1 Стоимость за единицу объема"},{"$f":"'[3]калькуляция (%,ДЗ)'!$P$49","v":4284.04},"руб/тыс.м3"]
[{"$nulls":4},{"$f":"D18 & \".2 Объем\"","v":"2.2.1.2 Объем"},{"$f":"'[3]калькуляция (%,ДЗ)'!$P$48/1000","v":{"v":13.891774822363937,"d":"13.89"}},"тыс. руб.","млн.м3"]
[{"$nulls":4},{"$f":"D18 & \".3 Стоимость доставки\"","v":"2.2.1.3 Стоимость доставки"},{"v":0,"d":"0.00"},"тыс. руб.","в стоимости "]
[{"$nulls":4},{"$f":"D18 & \".4 Способ приобретения\"","v":"2.2.1.4 Способ приобретения"},"по договору"]
[{"$nulls":4},"Добавить вид топлива",{"$nulls":3},"add_FUEL_range"]
[{"$nulls":3},"2.3","Расходы на покупаемую электрическую энергию (мощность), используемую в технологическом процессе",{"$f":"'[3]калькуляция (%,ДЗ)'!$P$65","v":{"v":9191.609820000001,"d":"9191.61"}},"тыс. руб."]
[{"$nulls":3},"2.3.1","Средневзвешенная стоимость 1 кВт*ч ( с учетом мощности)",{"$f":"'[3]калькуляция (%,ДЗ)'!$P$149","v":{"v":2.8854599999999997,"d":"2.89"}},"руб."]
[{"$nulls":3},"2.3.2","Объем приобретенной электрической энергии",{"$f":"'[3]калькуляция (%,ДЗ)'!$P$150","v":{"v":3185.4920255349243,"d":"3185.49"}},"тыс. кВт*ч"]
[{"$nulls":3},"2.4","Расходы на приобретение холодной воды, используемой в технологическом процессе",{"$f":"'[3]калькуляция (%,ДЗ)'!$P$33","v":{"v":362.9489,"d":"362.95"}},"тыс. руб."]
[{"$nulls":3},"2.5","Расходы на химические реагенты, используемые в технологическом процессе",{"$f":"'[3]калькуляция (%,ДЗ)'!$P$40","v":{"v":200.35838,"d":"200.36"}},"тыс. руб."]
[{"$nulls":3},"2.6","Расходы на оплату труда основного производственного персонала",{"$f":"'[3]калькуляция (%,ДЗ)'!$P$164+'[3]калькуляция (%,ДЗ)'!$P$170","v":{"v":3771.0118399999997,"d":"3771.01"}},"тыс. руб."]
[{"$nulls":3},"2.7","Отчисления на социальные нужды основного производственного персонала",{"$f":"'[3]калькуляция (%,ДЗ)'!$P$180+'[3]калькуляция (%,ДЗ)'!$P$182","v":{"v":1149.4165700000003,"d":"1149.42"}},"тыс. руб."]
[{"$nulls":3},"2.8","Расходы на оплату труда административно-управленческого персонала",{"$f":"'[3]калькуляция (%,ДЗ)'!$P$173","v":{"v":1147.9489099999998,"d":"1147.95"}},"тыс. руб."]
[{"$nulls":3},"2.9","Отчисления на социальные нужды административно-управленческого персонала",{"$f":"'[3]калькуляция (%,ДЗ)'!$P$183","v":{"v":331.55584999999996,"d":"331.56"}},"тыс. руб."]
[{"$nulls":3},"2.10","Расходы на амортизацию основных производственных средств",{"$f":"'[3]калькуляция (%,ДЗ)'!$P$155","v":{"v":218.30422,"d":"218.30"}},"тыс. руб."]
[{"$nulls":3},"2.11","Расходы на аренду имущества, используемого для осуществления регулируемого вида деятельности",{"$f":"'[3]калькуляция (%,ДЗ)'!$P$157","v":{"v":682.0529,"d":"682.05"}},"тыс. руб."]
[{"$nulls":3},"2.12","Общепроизводственные расходы, в том числе отнесенные к ним:",{"$f":"'[3]калькуляция (%,ДЗ)'!$P$189+'[3]калькуляция (%,ДЗ)'!$P$41+'[3]калькуляция (%,ДЗ)'!$P$190","v":{"v":898.51679,"d":"898.52"}},"тыс. руб."]
[{"$nulls":3},"2.12.1","Расходы на текущий ремонт",{"v":0,"d":"0.00"},"тыс. руб."]
[{"$nulls":3},"2.12.2","Расходы на капитальный ремонт",{"v":0,"d":"0.00"},"тыс. руб."]
[{"$nulls":3},"2.13","Общехозяйственные расходы, в том числе отнесенные к ним:",{"$f":"'[3]калькуляция (%,ДЗ)'!$P$191","v":{"v":2060.63621,"d":"2060.64"}},"тыс. руб."]
[{"$nulls":3},"2.13.1","Расходы на текущий ремонт",{"v":0,"d":"0.00"},"тыс. руб."]
[{"$nulls":3},"2.13.2","Расходы на капитальный ремонт",{"v":0,"d":"0.00"},"тыс. руб."]
[{"$nulls":3},"2.14","Расходы на капитальный и текущий ремонт основных производственных средств",{"$f":"'[3]калькуляция (%,ДЗ)'!$P$161+'[3]калькуляция (%,ДЗ)'!$P$162","v":{"v":1468.31964,"d":"1468.32"}},"тыс. руб."]
[{"$nulls":3},"2.15","Прочие расходы, которые подлежат отнесению на регулируемые виды деятельности в соответствии с законодательством Российской Федерации",{"$f":"SUM(F43:F46)","v":{"v":12215.810547130697,"d":"12215.81"}},"тыс. руб."]
[{"$nulls":3},"2.15.0",null,null,"тыс. руб.","тыс. руб."]
[null,null,"ы","2.15.1","выплата процентов по договорам займа ООО Мечел-Энерго",{"$f":"[5]запрос!$B$30/1000","v":{"v":4970.03547327805,"d":"4970.04"}},"тыс. руб."]
[null,null,"ы","2.15.2","выпадающие расходы (списанная по суду дебиторская задолженность)",{"$f":"[5]запрос!$B$31/1000","v":{"v":7245.775073852647,"d":"7245.78"}},"тыс. руб."]
[{"$nulls":4},"Добавить расходы",{"$nulls":3},"add_IDEX_range"]
[{"$nulls":3},"3","Чистая прибыль, полученная от регулируемого вида деятельности, в том числе:",{"$f":"F12-F14","v":{"v":4576.672752869286,"d":"4576.67"}},"тыс. руб."]
[{"$nulls":3},"3.1","Размер расходования чистой прибыли на финансирование мероприятий, предусмотренных инвестиционной программой",{"v":0,"d":"0.00"},"тыс. руб."]
[{"$nulls":3},"4","Сведения об изменении стоимости основных фондов, в том числе:",{"$f":"F50","v":{"v":0,"d":"0.00"}},"тыс. руб."]
[{"$nulls":3},"4.1","За счет ввода (вывода) из эксплуатации основных фондов",{"v":0,"d":"0.00"},"тыс. руб."]
[{"$nulls":3},"4.2","Стоимость переоценки основных фондов",{"v":0,"d":"0.00"},"тыс. руб."]
[{"$nulls":3},"5","Валовая прибыль (убытки) от реализации товаров и оказания услуг по регулируемому виду деятельности",{"$f":"F47","v":{"v":4576.672752869286,"d":"4576.67"}},"тыс. руб."]
[{"$nulls":3},"6","Годовая бухгалтерская отчетность, включая бухгалтерский баланс и приложения к нему","http://mechel-energo.ru/disclosure_of_information/mechel/"]
[{"$nulls":3},"7","Установленная тепловая мощность объектов основных фондов, используемых для осуществления регулируемых видов деятельности, в том числе по каждому источнику тепловой энергии:",{"v":100,"d":"100.00"},"Гкал/ч"]
[{"$nulls":3},"7.0",null,null,"Гкал/ч","Гкал/ч"]
[{"$nulls":4},"Добавить источник тепловой энергии",{"$nulls":3},"add_IDEX_GCAL_range"]
[{"$nulls":3},"8","Тепловая нагрузка по договорам, заключенным в рамках осуществления регулируемых видов деятельности",33.68,"Гкал/ч"]
[{"$nulls":3},"9","Объем вырабатываемой регулируемой организацией тепловой энергии в рамках осуществления регулируемых видов деятельности",{"$f":"'[3]калькуляция (%,ДЗ)'!$P$20","v":{"v":103.88579,"d":"103.89"}},"тыс Гкал"]
[{"$nulls":3},"10","Объем приобретаемой регулируемой организацией тепловой энергии в рамках осуществления регулируемых видов деятельности",{"v":0,"d":"0.00"},"тыс Гкал"]
[{"$nulls":3},"11","Объем тепловой энергии, отпускаемой потребителям по договорам, заключенным в рамках осуществления регулируемых видов деятельности, в том числе:",{"$f":"SUM(F61:F62)","v":{"v":102.54305,"d":"102.54"}},"тыс Гкал"]
[{"$nulls":3},"11.1","Определенном по приборам учета",{"v":0,"d":"0.00"},"тыс Гкал"]
[{"$nulls":3},"11.2","Определенном расчетным путем (нормативам потребления коммунальных услуг)",{"$f":"'[3]калькуляция (%,ДЗ)'!$P$25","v":{"v":102.54305,"d":"102.54"}},"тыс Гкал"]
[{"$nulls":3},"12","Нормативы технологических потерь при передаче тепловой энергии, теплоносителя по тепловым сетям, утвержденные уполномоченным органом",{"v":0,"d":"0.00"},"Ккал/ч.мес"]
[{"$nulls":3},"13","Фактический объем потерь при передаче тепловой энергии",{"$f":"0","v":{"v":0,"d":"0.00"}},"тыс Гкал"]
[{"$nulls":3},"14","Среднесписочная численность основного производственного персонала",{"v":16,"d":"16.00"},"человек"]
[{"$nulls":3},"15","Среднесписочная численность административно-управленческого персонала",{"v":3,"d":"3.00"},"человек"]
[{"$nulls":3},"16","Удельный расход условного топлива на единицу тепловой энергии, отпускаемой в тепловую сеть, в том числе с разбивкой по источникам тепловой энергии, используемым для осуществления регулируемых видов деятельности:",{"$f":"F20*1000/F62*1.163","v":{"v":157.55464771536697,"d":"157.55"}},"кг усл.топл./Гкал","к=1.163"]
[{"$nulls":3},"16.0",null,null,"кг усл.топл./Гкал","кг усл.топл./Гкал"]
[{"$nulls":4},"Добавить источник тепловой энергии",{"$nulls":3},"add_IDEX_KG_range"]
[{"$nulls":3},"17","Удельный расход электрической энергии на производство (передачу) тепловой энергии на единицу тепловой энергии, отпускаемой потребителям по договорам, заключенным в рамках осуществления регулируемых видов деятельности",{"$f":"F26/F58","v":{"v":30.663404740291472,"d":"30.66"}},"тыс. кВт*ч/Гкал"]
[{"$nulls":3},"18","Удельный расход холодной воды на производство (передачу) тепловой энергии на единицу тепловой энергии, отпускаемой потребителям по договорам, заключенным в рамках осуществления регулируемых видов деятельности",0.99,"куб. м/Гкал"]

{"sheet":"Товары и услуги","index":5,"n_rows":11,"n_cols":17,"rows_kept":11,"hidden":true,"merged":[[3,2,4,15],[5,2,5,15],[7,2,7,4],[7,5,7,7],[7,9,7,11],[8,2,8,4],[8,5,8,7],[8,9,8,11],[9,3,9,13]]}
[]
[]
[null,null,{"$f":"Getcode()","v":"ELPASS.JKH.OPEN.INFO.BALANCE.WARM"},{"$nulls":12},{"$f":"Инструкция!version","v":"Версия 1.0 от 01.10.2017"}]
[null,null,"Информация о товарах и услугах, приобретенных у организаций, сумма оплаты услуг которых превышает 20% от суммы расходов по статье. \nИх объемы, стоимость и способы приобретения."]
[]
[null,null,"ООО \"Мечел-энерго\""]
[]
[null,null,"Наименование поставщика",null,null,"Способ приобретения",null,null,"Реквизиты договора","Наименование товара (услуги)",null,null,"Объем приобретенных товаров (услуг)","Единица измерения объема товаров (услуг)","Стоимость, тыс. руб.","Доля расходов от суммы расходов по указанной статье, %"]
[null,null,1,null,null,2,null,null,3,4,null,null,"5","6","7","8"]
[null,null,"Статья:","Расходы на ремонт (текущий и капитальный) основных производственных средств.",{"$nulls":10},{"$f":"List10_RepairCosts","v":{"v":1468.31964,"d":"1468.32"}}]
[{"$nulls":4},"Добавить поставщика",{"$nulls":11},"add_PROVIDER_range"]

{"sheet":"Потребительские характеристики","index":6,"n_rows":22,"n_cols":8,"rows_kept":22,"merged":[[2,3,2,5],[3,3,4,7],[5,3,5,7]]}
[]
[]
[{"$nulls":3},{"$f":"Getcode()","v":"ELPASS.JKH.OPEN.INFO.BALANCE.WARM"},{"$nulls":3},{"$f":"Инструкция!version","v":"Версия 1.0 от 01.10.2017"}]
[{"$nulls":3},"Информация об основных потребительских характеристиках регулируемых товаров и услуг"]
[]
[{"$nulls":3},"ООО \"Мечел-энерго\""]
[]
[{"$nulls":3},"№ п/п","Наименование показателя","Значение","Ссылка на документ, размещенный в Файловом хранилище документов Системы Эльпас","Комментарии"]
[{"$nulls":3},1,2,3,4,5]
[{"$nulls":3},1,"Количество аварий на тепловых сетях (единиц на км)",{"v":0,"d":"0.00"},"х"]
[{"$nulls":3},2,"Количество аварий на источниках тепловой энергии (единиц на источник)",{"v":0,"d":"0.00"},"х"]
[{"$nulls":3},3,"Показатели надежности и качества, установленные в сответствии с законодательством РФ","показатель надежности системы теплоснабжения  0.87","http://92.242.46.82/UserFile/Download?guid=57f887ce-b9ed-4e2e-af10-a9963be68c1f"]
[{"$nulls":3},4,"Доля числа исполненных в срок договоров о подключении (технологическом присоединении), %",{"v":100,"d":"100.00"},"х"]
[{"$nulls":3},5,"Средняя продолжительность рассмотрения заявок на подключение (технологическое присоединение), дней",{"v":2,"d":"2.00"},"х"]
[{"$nulls":3},6,"Вывод источников тепловой энергии, тепловых сетей из эксплуатации (с указанием такого источника или тепловой сети и даты вывода из эксплуатации) **",0]
[{"$nulls":3},7,"Основания приостановления, ограничения и прекращения режима потребления тепловой энергии в случаях, предусмотренных пунктами 70 и 76 Правил организации теплоснабжения в РФ, утвержденных постановлением Правительства РФ от 8 августа 2012 г. N 808 \"Об организации теплоснабжения в РФ и о внесении изменений в некоторые акты Правительства РФ\" *** \n(Собрание законодательства Российской Федерации, 2012, № 34, ст. 4734; 2016, №2, ст. 403; № 22 ст. 3228; № 29, ст. 4837; № 49 ст. 6906; 2017, № 8, ст. 1230)",0,"http://92.242.46.82/UserFile/Download?guid=bc4183f8-c019-4b7c-be79-1afd9482ce8e"]
[]
[]
[]
[]
[{"$nulls":3},"**","Заполняется нарастающим итогом"]
[{"$nulls":3},"***","Заполняется в отношении каждого потребителя, в отношении которого введен режим приостановления, ограничения, прекращения потребления тепловой энергии с указанием оснований"]

{"sheet":"Инвестиционная программа","index":7,"n_rows":19,"n_cols":26,"rows_kept":19,"hidden":true,"merged":[[3,3,3,15],[5,3,6,4],[5,5,5,6],[5,7,6,9],[5,10,6,10],[5,11,6,13],[5,14,6,14],[5,15,6,15],[7,3,7,4],[7,7,7,9],[7,11,7,13],[8,3,17,3],[8,4,17,4],[8,5,17,5],[8,6,17,6],[8,7,13,7],[8,8,13,8],[8,9,13,9],[8,10,9,10],[10,10,13,10],[10,11,10,13],[11,11,11,13],[12,11,12,13],[13,11,13,13],[15,7,16,7],[15,8,16,8],[15,9,16,9],[15,10,16,10],[15,11,15,13],[16,11,16,13]]}
[]
[]
[{"$nulls":4},{"$f":"Getcode()","v":"ELPASS.JKH.OPEN.INFO.BALANCE.WARM"},{"$nulls":10},{"$f":"Инструкция!version","v":"Версия 1.0 от 01.10.2017"}]
[{"$nulls":3},"Информация об инвестиционных программах регулируемой организации и отчетах об их реализации"]
[]
[null,3,null,"Наименование мероприятия",null,"Срок реализации мероприятия",null,"Дифференциация по источникам финансирования / по целевым показателям",null,null,"Наименование показателя","Год/квартал",null,null,"Значение","Единицы измерения"]
[{"$nulls":5},"Дата начала","Дата окончания"]
[null,3,null,"1",null,"2","3","4",null,null,"5","6",null,null,"7","8"]
[{"$nulls":3},1,{"$nulls":4},1,null,"Потребности в финансовых средствах, необходимых для реализации инвестиционной программы",null,1,null,null,"тыс. руб."]
[{"$nulls":13},"Добавить год",{"$nulls":11},"add_YEAR_range"]
[{"$nulls":10},"Использование инвестиционных средств за отчетный год","I квартал",{"$nulls":3},"тыс. руб."]
[{"$nulls":11},"II квартал",{"$nulls":3},"тыс. руб."]
[{"$nulls":11},"III квартал",{"$nulls":3},"тыс. руб."]
[{"$nulls":11},"IV квартал",{"$nulls":3},"тыс. руб."]
[{"$nulls":9},"Добавить источник",{"$nulls":11},"add_SOURCE_range"]
[{"$nulls":8},1,"Целевой показатель инвестиционной программы:",null,"Плановое значение"]
[{"$nulls":11},"Фактическое значение"]
[{"$nulls":9},"Добавить показатель",{"$nulls":11},"add_INVEST_INDEX_range"]
[{"$nulls":4},"Добавить мероприятие",{"$nulls":11},"add_EVENT_range"]

{"sheet":"Изменения инвест. программы","index":8,"n_rows":11,"n_cols":7,"rows_kept":11,"hidden":true,"merged":[[2,3,2,4],[3,3,4,5],[5,3,5,5],[6,3,6,6]]}
[]
[]
[{"$nulls":3},{"$f":"Getcode()","v":"ELPASS.JKH.OPEN.INFO.BALANCE.WARM"},null,{"$f":"Инструкция!version","v":"Версия 1.0 от 01.10.2017"}]
[{"$nulls":3},"Внесение изменений в инвестиционную программу"]
[]
[{"$nulls":3},"ООО \"Мечел-энерго\""]
[null,3]
[null,3,null,"№ п/п","Внесенные изменения","Дата внесения изменений"]
[null,3,null,"1","2","3"]
[{"$nulls":3},"1"]
[{"$nulls":4},"Добавить строку",null,"add_INFO_range"]

{"sheet":"Ссылки на публикации","index":9,"n_rows":19,"n_cols":11,"rows_kept":19,"merged":[[3,3,4,9],[5,3,5,9],[9,3,11,3],[9,4,9,9],[12,3,14,3],[12,4,12,9],[15,3,17,3],[15,4,15,9]]}
["f"]
[]
[{"$nulls":3},{"$f":"Getcode()","v":"ELPASS.JKH.OPEN.INFO.BALANCE.WARM"},{"$nulls":5},{"$f":"Инструкция!version","v":"Версия 1.0 от 01.10.2017"}]
[{"$nulls":3},"Ссылки на публикации"]
[]
[{"$nulls":3},"ООО \"Мечел-энерго\""]
[]
[{"$nulls":3},"№ п/п","Содержание пункта","Наименование источника","Дата размещения информации","Номер издания","Дата издания","Адрес"]
[{"$nulls":3},"1","2","3","4","5","6","7"]
[{"$nulls":3},1,"Информация об основных показателях финансово-хозяйственной деятельности регулируемой организации, включая структуру основных производственных затрат (в части регулируемой деятельности) (п.19 Постановления Правительства РФ от 05 июля 2013г. №570 \"О стандартах раскрытия информации теплоснабжающими, теплосетевыми организациями и органами регулирования\")"]
[{"$nulls":4},"Сайт организации в сети Интернет","официальный сайт ООО МЕЧЕЛ-ЭНЕРГО","2018-04-15","х","х","http://mechel-energo.ru/"]
[{"$nulls":4},"Печатное издание",{"$nulls":5},"FHD"]
[{"$nulls":3},2,"Информация об основных потребительских характеристиках регулируемых товаров и услуг, оказываемых регулируемой организацией (п.20 Постановления Правительства РФ от 05 июля 2013г. №570 \"О стандартах раскрытия информации теплоснабжающими, теплосетевыми организациями и органами регулирования\")"]
[{"$nulls":4},"Сайт организации в сети Интернет","официальный сайт ООО МЕЧЕЛ-ЭНЕРГО","2018-01-15","х","х","http://mechel-energo.ru/"]
[{"$nulls":4},"Печатное издание",{"$nulls":5},"FHD"]
[{"$nulls":3},3,"Информация об инвестиционных программах регулируемой организации (п.21 Постановления Правительства РФ от 05 июля 2013г. №570 \"О стандартах раскрытия информации теплоснабжающими, теплосетевыми организациями и органами регулирования\")"]
[{"$nulls":4},"Сайт организации в сети Интернет","официальный сайт ООО МЕЧЕЛ-ЭНЕРГО","2018-01-15","х","х","http://mechel-energo.ru/"]
[{"$nulls":4},"Печатное издание",{"$nulls":5},"FHD"]
[{"$nulls":4},"Добавить публикацию",{"$nulls":5},"add_PUBLIC_range"]

{"sheet":"Сведения об изменениях","index":10,"n_rows":11,"n_cols":7,"rows_kept":11,"hidden":true,"merged":[[2,3,2,4],[3,3,4,5],[5,3,5,5],[6,3,6,6]]}
[]
[]
[{"$nulls":3},{"$f":"Getcode()","v":"ELPASS.JKH.OPEN.INFO.BALANCE.WARM"},null,{"$f":"Инструкция!version","v":"Версия 1.0 от 01.10.2017"}]
[{"$nulls":3},"Сведения об изменениях"]
[]
[{"$nulls":3},"ООО \"Мечел-энерго\""]
[null,3]
[null,3,null,"№ п/п","Внесенные изменения","Дата внесения изменений"]
[null,3,null,"1","2","3"]
[{"$nulls":3},"1"]
[{"$nulls":4},"Добавить строку",null,"add_INFO_range"]

{"sheet":"Комментарий","index":11,"n_rows":11,"n_cols":4,"rows_kept":11,"merged":[[2,1,2,2],[3,1,5,2],[7,1,7,2]]}
[]
[]
[null,{"$f":"Getcode()&\"                                                                                          \"&Инструкция!version","v":"ELPASS.JKH.OPEN.INFO.BALANCE.WARM                                                                                          Версия 1.0 от 01.10.2017"}]
[null,{"$f":"GetTemplateName()","v":"Показатели, подлежащие раскрытию теплоснабжающими, теплосетевыми организациями"}]
[]
[]
[]
[null,"Комментарии регулируемой организации"]
[null,"№","Комментарий"]
[null,1]
[null,null,"Добавить комментарий","add_COMMENTS_range"]

{"sheet":"Ошибки и предупреждения","index":12,"n_rows":4,"n_cols":4,"rows_kept":4,"merged":[[1,1,1,3]]}
[]
[null,"Результат проверки"]
[]
[null,"Ссылка","Причина","Статус"]

{"sheet":"Columns","index":13,"n_rows":0,"n_cols":0,"rows_kept":0,"hidden":true}

{"sheet":"Rows","index":14,"n_rows":64,"n_cols":35,"rows_kept":64,"hidden":true,"merged":[[7,2,11,2],[7,3,11,3],[13,2,16,2],[13,3,16,3],[13,4,16,4],[13,5,13,13],[14,5,15,5],[14,6,15,6],[14,7,15,7],[14,8,15,8],[18,5,19,5],[18,6,19,6],[18,7,19,7],[18,8,19,8],[23,2,32,2],[23,3,32,3],[23,4,32,4],[23,5,32,5],[23,6,32,6],[23,7,28,7],[23,8,28,8],[23,9,28,9],[23,10,24,10],[25,10,28,10],[25,11,25,13],[26,11,26,13],[27,11,27,13],[28,11,28,13],[30,7,31,7],[30,8,31,8],[30,9,31,9],[30,10,31,10],[30,11,30,13],[31,11,31,13],[34,7,39,7],[34,8,39,8],[34,9,39,9],[34,10,35,10],[36,10,39,10],[36,11,36,13],[37,11,37,13],[38,11,38,13],[39,11,39,13],[43,7,44,7],[43,8,44,8],[43,9,44,9],[43,10,44,10],[43,11,43,13],[44,11,44,13],[48,2,50,2],[48,3,50,3],[48,4,48,9],[58,5,59,5],[58,6,59,6],[58,7,59,7],[59,8,59,9],[59,11,59,12],[61,1,63,1],[61,2,63,2],[61,3,63,3],[61,4,62,4],[61,5,62,5],[61,6,62,6],[61,7,62,7],[62,8,62,9],[62,11,62,12]]}
["add_COMMENTS_range","лист Комментарий"]
[]
["add_TYPE_range"]
[{"$nulls":6},"тыс. руб."]
["add_IDEX_range"]
[{"$nulls":6},"тыс. руб."]
["add_FUEL_range"]
[{"$nulls":5},{"$f":"F9*F10+F11","v":{"v":0,"d":"0.00"}},"f"]
[{"$nulls":4},{"$f":"D8 & \".1 Стоимость за единицу объема\"","v":".1 Стоимость за единицу объема"}]
[{"$nulls":4},{"$f":"D8 & \".2 Объем\"","v":".2 Объем"},null,"тыс. руб."]
[{"$nulls":4},{"$f":"D8 & \".3 Стоимость доставки\"","v":".3 Стоимость доставки"},null,"тыс. руб."]
[{"$nulls":4},{"$f":"D8 & \".4 Способ приобретения\"","v":".4 Способ приобретения"}]
["add_PROVIDER_range"]
[{"$nulls":3},1,null,"Итого поставщику:",{"$nulls":8},{"$f":"SUM(O15:O17)","v":{"v":0,"d":"0.00"}},{"$f":"IFERROR(O14/List11_RepairCosts,0)*100","v":{"v":0,"d":"0.00"}}]
[{"$nulls":6},"1",{"$nulls":3},"1"]
[{"$nulls":11},"Добавить товар(услугу)",{"$nulls":11},"add_PRODUCT_range"]
[{"$nulls":7},"Добавить способ",{"$nulls":11},"add_METHOD_range"]
["add_METHOD_range"]
[{"$nulls":6},"1",{"$nulls":3},"1"]
[{"$nulls":11},"Добавить товар(услугу)",{"$nulls":11},"add_PRODUCT_range"]
["add_PRODUCT_range"]
[{"$nulls":10},"1"]
["add_EVENT_range"]
[{"$nulls":3},1,{"$nulls":4},1,null,"Потребности в финансовых средствах, необходимых для реализации инвестиционной программы",null,1,null,null,"тыс. руб."]
[{"$nulls":13},"Добавить год",{"$nulls":11},"add_YEAR_range"]
[{"$nulls":10},"Использование инвестиционных средств за отчетный год","I квартал",{"$nulls":3},"тыс. руб."]
[{"$nulls":11},"II квартал",{"$nulls":3},"тыс. руб."]
[{"$nulls":11},"III квартал",{"$nulls":3},"тыс. руб."]
[{"$nulls":11},"IV квартал",{"$nulls":3},"тыс. руб."]
[{"$nulls":9},"Добавить источник",{"$nulls":11},"add_SOURCE_range"]
[{"$nulls":8},1,"Целевой показатель инвестиционной программы:",null,"Плановое значение"]
[{"$nulls":11},"Фактическое значение"]
[{"$nulls":9},"Добавить показатель",{"$nulls":11},"add_INVEST_INDEX_range"]
["add_SOURCE_range"]
[{"$nulls":8},1,null,"Потребности в финансовых средствах, необходимых для реализации инвестиционной программы",null,1,null,null,"тыс. руб."]
[{"$nulls":13},"Добавить год",{"$nulls":11},"add_YEAR_range"]
[{"$nulls":10},"Использование инвестиционных средств за отчетный год","I квартал",{"$nulls":3},"тыс. руб."]
[{"$nulls":11},"II квартал",{"$nulls":3},"тыс. руб."]
[{"$nulls":11},"III квартал",{"$nulls":3},"тыс. руб."]
[{"$nulls":11},"IV квартал",{"$nulls":3},"тыс. руб."]
["add_YEAR_range"]
[{"$nulls":12},1,null,null,"тыс. руб."]
["add_INVEST_INDEX_range"]
[{"$nulls":8},1,"Целевой показатель инвестиционной программы:",null,"Плановое значение"]
[{"$nulls":11},"Фактическое значение"]
["add_INFO_range"]
[]
["add_PUBLIC_range"]
[]
[{"$nulls":4},"Сайт организации в сети Интернет",null,null,"х","х"]
[{"$nulls":4},"Печатное издание",{"$nulls":5},"FHD"]
["add_IDEX_GCAL_range"]
[{"$nulls":6},"Гкал/ч"]
["add_IDEX_KG_range"]
[{"$nulls":6},"кг усл.топл./Гкал"]
["add_MO_range"]
[{"$nulls":3},"1","МР",{"$nulls":3},"МО",null,1,{"$nulls":16},1]
["add_MR_range"]
[{"$nulls":3},"1","МР",null,1,null,"МО",null,1,{"$nulls":16},1]
[{"$nulls":11},"Добавить МО",{"$nulls":22},"add_MO_range"]
["add_T_range"]
[{"$nulls":4},"МР",null,1,null,"МО",null,1]
[{"$nulls":11},"Добавить МО",{"$nulls":22},"add_MO_range"]
[{"$nulls":7},"Добавить ГО / МР",{"$nulls":22},"add_MR_range"]

{"sheet":"RegistryMunicipal","index":15,"n_rows":896,"n_cols":7,"rows_kept":896,"hidden":true}
["MO1","МО1_ОКТМО","ИМЯ ДИАПАЗОНА",null,"MO1","MO2","МО2_ОКТМО"]
["Абзелиловский муниципальный район","80601000","MO_LIST_2",null,"Абзелиловский муниципальный район"," Все муниципальные образования","80601000"]
["Альшеевский муниципальный район","80602000","MO_LIST_3",null,"Абзелиловский муниципальный район","Альмухаметовский сельский совет","80601404"]
["Архангельский муниципальный район","80603000","MO_LIST_4",null,"Абзелиловский муниципальный район","Амангильдинский сельский совет","80601407"]
["Аскинский муниципальный район","80604000","MO_LIST_5",null,"Абзелиловский муниципальный район","Аскаровский сельский совет","80601410"]
["Аургазинский муниципальный район","80605000","MO_LIST_6",null,"Абзелиловский муниципальный район","Баимовский сельский совет","80601413"]
["Баймакский муниципальный район","80606000","MO_LIST_7",null,"Абзелиловский муниципальный район","Бурангуловский сельский совет","80601416"]
["Бакалинский муниципальный район","80607000","MO_LIST_8",null,"Абзелиловский муниципальный район","Гусевский сельский совет","80601419"]
["Балтачевский муниципальный район","80608000","MO_LIST_9",null,"Абзелиловский муниципальный район","Давлетовский сельский совет","80601422"]
["Белебеевский муниципальный район","80609000","MO_LIST_10",null,"Абзелиловский муниципальный район","Кирдасовский сельский совет","80601425"]
["Белокатайский муниципальный район","80610000","MR_LIST_11",null,"Абзелиловский муниципальный район","Краснобашкирский сельский совет","80601428"]
["Белорецкий муниципальный район","80611000","MO_LIST_12",null,"Абзелиловский муниципальный район","Равиловский сельский совет","80601431"]
["Бижбулякский муниципальный район","80612000","MO_LIST_13",null,"Абзелиловский муниципальный район","Ташбулатовский сельский совет","80601434"]
["Бирский муниципальный район","80613000","MO_LIST_14",null,"Абзелиловский муниципальный район","Таштимеровский сельский совет","80601437"]
["Благоварский муниципальный район","80614000","MO_LIST_15",null,"Абзелиловский муниципальный район","Халиловский сельский совет","80601440"]
["Благовещенский муниципальный район","80615000","MO_LIST_16",null,"Абзелиловский муниципальный район","Хамитовский сельский совет","80601443"]
["Буздякский муниципальный район","80617000","MO_LIST_17",null,"Абзелиловский муниципальный район","Янгильский сельский совет","80601446"]
["Бураевский муниципальный район","80618000","MO_LIST_18",null,"Альшеевский муниципальный район"," Все муниципальные образования","80602000"]
["Бурзянский муниципальный район","80619000","MO_LIST_19",null,"Альшеевский муниципальный район","Абдрашитовский сельский совет","80602404"]
["Гафурийский муниципальный район","80621000","MO_LIST_20",null,"Альшеевский муниципальный район","Аксеновский сельский совет","80602406"]
["Город Агидель","80703000","MO_LIST_21",null,"Альшеевский муниципальный район","Воздвиженский сельский совет","80602413"]
["Город Кумертау","80723000","MO_LIST_22",null,"Альшеевский муниципальный район","Гайниямакский сельский совет","80602416"]
["Город Нефтекамск","80727000","MO_LIST_23",null,"Альшеевский муниципальный район","Зеленоклиновский сельский совет","80602418"]
["Город Октябрьский","80735000","MO_LIST_24",null,"Альшеевский муниципальный район","Ибраевский сельский совет","80602419"]
["Город Салават","80739000","MO_LIST_25",null,"Альшеевский муниципальный район","Казанский сельский совет","80602422"]
["Город Сибай","80743000","MO_LIST_26",null,"Альшеевский муниципальный район","Кармышевский сельский совет","80602428"]
["Город Стерлитамак","80745000","MO_LIST_27",null,"Альшеевский муниципальный район","Кипчак-Аскаровский сельский совет","80602431"]
["Город Уфа","80701000","MO_LIST_28",null,"Альшеевский муниципальный район","Кызыльский сельский совет","80602437"]
["Давлекановский муниципальный район","80622000","MO_LIST_29",null,"Альшеевский муниципальный район","Мендяновский сельский совет","80602440"]
["Дуванский муниципальный район","80623000","MO_LIST_30",null,"Альшеевский муниципальный район","Нигматуллинский сельский совет","80602443"]
["Дюртюлинский муниципальный район","80624000","MO_LIST_31",null,"Альшеевский муниципальный район","Нижнеаврюзовский сельский совет","80602446"]
["Ермекеевский муниципальный район","80625000\n","MO_LIST_32",null,"Альшеевский муниципальный район","Никифаровский сельский совет","80602449"]
["ЗАТО город Межгорье","80707000","MO_LIST_33",null,"Альшеевский муниципальный район","Раевский сельский совет","80602451"]
["Зианчуринский муниципальный район","80626000","MO_LIST_34",null,"Альшеевский муниципальный район","Слаковский сельский совет","80602455"]
["Зилаирский муниципальный район","80627000","MO_LIST_35",null,"Альшеевский муниципальный район","Ташлинский сельский совет","80602458"]
["Иглинский муниципальный район","80628000","MO_LIST_36",null,"Альшеевский муниципальный район","Трунтаишевский сельский совет","80602461"]
["Илишевский муниципальный район","80630000","MO_LIST_37",null,"Альшеевский муниципальный район","Чебенлинский сельский совет","80602464"]
["Ишимбайский муниципальный район","80631000","MO_LIST_38",null,"Альшеевский муниципальный район","Шафрановский сельский совет","80602470"]
["Калтасинский муниципальный район","80633000","MO_LIST_39",null,"Архангельский муниципальный район"," Все муниципальные образования","80603000"]
["Караидельский муниципальный район","80634000","MO_LIST_40",null,"Архангельский муниципальный район","Абзановский сельский совет","80603404"]
["Кармаскалинский муниципальный район","80635000","MO_LIST_41",null,"Архангельский муниципальный район","Архангельский сельский совет","80603410"]
["Кигинский муниципальный район","80636000","MO_LIST_42",null,"Архангельский муниципальный район","Арх-Латышский сельский совет","80603413"]
["Краснокамский муниципальный район","80637000","MO_LIST_43",null,"Архангельский муниципальный район","Бакалдинский сельский совет","80603416"]
["Кугарчинский муниципальный район","80638000","MO_LIST_44",null,"Архангельский муниципальный район","Инзерский сельский совет","80603419"]
["Кушнаренковский муниципальный район","80640000","MO_LIST_45",null,"Архангельский муниципальный район","Ирныкшинский сельский совет","80603422"]
["Куюргазинский муниципальный район","80639000","MO_LIST_46",null,"Архангельский муниципальный район","Краснозилимский сельский совет","80603425"]
["Мелеузовский муниципальный район","80641000","MO_LIST_47",null,"Архангельский муниципальный район","Краснокуртовский сельский совет","80603428"]
["Мечетлинский муниципальный район","80642000","MO_LIST_48",null,"Архангельский муниципальный район","Липовский сельский совет","80603434"]
["Мишкинский муниципальный район","80643000","MO_LIST_49",null,"Архангельский муниципальный район","Орловский сельский совет","80603440"]
["Миякинский муниципальный район","80644000","MO_LIST_50",null,"Архангельский муниципальный район","Тавакачевский сельский совет","80603446"]
["Нуримановский муниципальный район","80645000","MO_LIST_51",null,"Архангельский муниципальный район","Узунларовский сельский совет","80603450"]
["Салаватский муниципальный район","80647000","MO_LIST_52",null,"Аскинский муниципальный район"," Все муниципальные образования","80604000"]
["Стерлибашевский муниципальный район","80648000","MO_LIST_53",null,"Аскинский муниципальный район","Арбашевский сельский совет","80604402"]
["Стерлитамакский муниципальный район","80649000","MO_LIST_54",null,"Аскинский муниципальный район","Аскинский сельский совет","80604404"]
["Татышлинский муниципальный район","80650000","MO_LIST_55",null,"Аскинский муниципальный район","Евбулякский сельский совет","80604413"]
["Туймазинский муниципальный район","80651000","MO_LIST_56",null,"Аскинский муниципальный район","Казанчинский сельский совет","80604416"]
["Уфимский муниципальный район","80652000","MO_LIST_57",null,"Аскинский муниципальный район","Карткисяковский сельский совет","80604418"]
["Учалинский муниципальный район","80653000","MO_LIST_58",null,"Аскинский муниципальный район","Кашкинский сельский совет","80604419"]
["Федоровский муниципальный район","80654000","MO_LIST_59",null,"Аскинский муниципальный район","Ключевский сельский совет","80604425"]
["Хайбуллинский муниципальный район","80655000","MO_LIST_60",null,"Аскинский муниципальный район","Кубиязовский сельский совет","80604428"]
["Чекмагушевский муниципальный район","80656000","MO_LIST_61",null,"Аскинский муниципальный район","Кунгаковский сельский совет","80604431"]
["Чишминский муниципальный район","80657000","MO_LIST_62",null,"Аскинский муниципальный район","Кшлау-Елгинский сельский совет","80604437"]
["Шаранский муниципальный район","80658000","MO_LIST_63",null,"Аскинский муниципальный район","Мутабашевский сельский совет","80604440"]
["Янаульский муниципальный район","80659000","MO_LIST_64",null,"Аскинский муниципальный район","Петропавловский сельский совет","80604442"]
[{"$nulls":4},"Аскинский муниципальный район","Султанбековский сельский совет","80604443"]
[{"$nulls":4},"Аскинский муниципальный район","Урмиязовский сельский совет","80604446"]
[{"$nulls":4},"Аскинский муниципальный район","Усть-Табасский сельский совет","80604450"]
[{"$nulls":4},"Аургазинский муниципальный район"," Все муниципальные образования","80605000"]
[{"$nulls":4},"Аургазинский муниципальный район","Балыклыкульский сельский совет","80605402"]
[{"$nulls":4},"Аургазинский муниципальный район","Батыровский сельский совет","80605404"]
[{"$nulls":4},"Аургазинский муниципальный район","Бишкаинский сельский совет","80605407"]
[{"$nulls":4},"Аургазинский муниципальный район","Ибраевский сельский совет","80605410"]
[{"$nulls":4},"Аургазинский муниципальный район","Исмагиловский сельский совет","80605413"]
[{"$nulls":4},"Аургазинский муниципальный район","Ишлинский сельский совет","80605416"]
[{"$nulls":4},"Аургазинский муниципальный район","Кебячевский сельский совет","80605419"]
[{"$nulls":4},"Аургазинский муниципальный район","Меселинский сельский совет","80605422"]
[{"$nulls":4},"Аургазинский муниципальный район","Михайловский сельский совет","80605425"]
[{"$nulls":4},"Аургазинский муниципальный район","Нагадакский сельский совет","80605428"]
[{"$nulls":4},"Аургазинский муниципальный район","Новокальчировский сельский совет","80605431"]
[{"$nulls":4},"Аургазинский муниципальный район","Семенкинский сельский совет","80605434"]
[{"$nulls":4},"Аургазинский муниципальный район","Степановский сельский совет","80605437"]
[{"$nulls":4},"Аургазинский муниципальный район","Султанмуратовский сельский совет","80605440"]
[{"$nulls":4},"Аургазинский муниципальный район","Таштамакский сельский совет","80605443"]
[{"$nulls":4},"Аургазинский муниципальный район","Толбазинский сельский совет","80605446"]
[{"$nulls":4},"Аургазинский муниципальный район","Тряпинский сельский совет","80605449"]
[{"$nulls":4},"Аургазинский муниципальный район","Тукаевский сельский совет","80605452"]
[{"$nulls":4},"Аургазинский муниципальный район","Турумбетовский сельский совет","80605458"]
[{"$nulls":4},"Аургазинский муниципальный район","Уршакский сельский совет","80605461"]
[{"$nulls":4},"Аургазинский муниципальный район","Чуваш-Карамалинский сельский совет","80605472"]
[{"$nulls":4},"Баймакский муниципальный район"," Все муниципальные образования","80606000"]
[{"$nulls":4},"Баймакский муниципальный район","1-й Иткуловский сельский совет","80606416"]
[{"$nulls":4},"Баймакский муниципальный район","Абдулкаримовский сельский совет","80606404"]
[{"$nulls":4},"Баймакский муниципальный район","Акмурунский сельский совет","80606407"]
[{"$nulls":4},"Баймакский муниципальный район","Бекешевский сельский совет","80606409"]
[{"$nulls":4},"Баймакский муниципальный район","Биляловский сельский совет","80606410"]
[{"$nulls":4},"Баймакский муниципальный район","Город Баймак","80606101"]
[{"$nulls":4},"Баймакский муниципальный район","Зилаирский сельский совет","80606413"]
[{"$nulls":4},"Баймакский муниципальный район","Ишбердинский сельский совет","80606428"]
[{"$nulls":4},"Баймакский муниципальный район","Ишмурзинский сельский совет","80606422"]
[{"$nulls":4},"Баймакский муниципальный район","Ишмухаметовский сельский совет","80606425"]
[{"$nulls":4},"Баймакский муниципальный район","Кульчуровский сельский совет","80606437"]
[{"$nulls":4},"Баймакский муниципальный район","Кусеевский сельский совет","80606431"]
[{"$nulls":4},"Баймакский муниципальный район","Мерясовский сельский совет","80606438"]
[{"$nulls":4},"Баймакский муниципальный район","Мукасовский сельский совет","80606434"]
[{"$nulls":4},"Баймакский муниципальный район","Нигаматовский сельский совет","80606440"]
[{"$nulls":4},"Баймакский муниципальный район","Семеновский сельский совет","80606442"]
[{"$nulls":4},"Баймакский муниципальный район","Сибайский сельский совет","80606443"]
[{"$nulls":4},"Баймакский муниципальный район","Тавлыкаевский сельский совет","80606446"]
[{"$nulls":4},"Баймакский муниципальный район","Татлыбаевский сельский совет","80606449"]
[{"$nulls":4},"Баймакский муниципальный район","Темясовский сельский совет","80606452"]
[{"$nulls":4},"Баймакский муниципальный район","Тубинский сельский совет","80606453"]
[{"$nulls":4},"Баймакский муниципальный район","Юмашевский сельский совет","80606455"]
[{"$nulls":4},"Баймакский муниципальный район","Яратовский сельский совет","80606459"]
[{"$nulls":4},"Бакалинский муниципальный район"," Все муниципальные образования","80607000"]
[{"$nulls":4},"Бакалинский муниципальный район","Ахмановский сельский совет","80607404"]
[{"$nulls":4},"Бакалинский муниципальный район","Бакалинский сельский совет","80607407"]
[{"$nulls":4},"Бакалинский муниципальный район","Бузюровский сельский совет","80607413"]
[{"$nulls":4},"Бакалинский муниципальный район","Дияшевский сельский совет","80607419"]
[{"$nulls":4},"Бакалинский муниципальный район","Камышлытамакский сельский совет","80607425"]
[{"$nulls":4},"Бакалинский муниципальный район","Килеевский сельский совет","80607428"]
[{"$nulls":4},"Бакалинский муниципальный район","Куштиряковский сельский совет","80607431"]
[{"$nulls":4},"Бакалинский муниципальный район","Михайловский сельский совет","80607410"]
[{"$nulls":4},"Бакалинский муниципальный район","Мустафинский сельский совет","80607434"]
[{"$nulls":4},"Бакалинский муниципальный район","Новокатаевский сельский совет","80607440"]
[{"$nulls":4},"Бакалинский муниципальный район","Новоурсаевский сельский совет","80607446"]
[{"$nulls":4},"Бакалинский муниципальный район","Старокостеевский сельский совет","80607451"]
[{"$nulls":4},"Бакалинский муниципальный район","Старокуручевский сельский совет","80607449"]
[{"$nulls":4},"Бакалинский муниципальный район","Староматинский сельский совет","80607455"]
[{"$nulls":4},"Бакалинский муниципальный район","Старошарашлинский сельский совет","80607458"]
[{"$nulls":4},"Бакалинский муниципальный район","Тактагуловский сельский совет","80607461"]
[{"$nulls":4},"Бакалинский муниципальный район","Урманаевский сельский совет","80607464"]
[{"$nulls":4},"Балтачевский муниципальный район"," Все муниципальные образования","80608000"]
[{"$nulls":4},"Балтачевский муниципальный район","Богдановский сельский совет","80608404"]
[{"$nulls":4},"Балтачевский муниципальный район","Верхнеянактаевский сельский совет","80608407"]
[{"$nulls":4},"Балтачевский муниципальный район","Кундашлинский сельский совет","80608413"]
[{"$nulls":4},"Балтачевский муниципальный район","Кунтугушевский сельский совет","80608416"]
[{"$nulls":4},"Балтачевский муниципальный район","Нижнекарышевский сельский совет","80608419"]
[{"$nulls":4},"Балтачевский муниципальный район","Нижнесикиязовский сельский совет","80608422"]
[{"$nulls":4},"Балтачевский муниципальный район","Норкинский сельский совет","80608425"]
[{"$nulls":4},"Балтачевский муниципальный район","Сейтяковский сельский совет","80608428"]
[{"$nulls":4},"Балтачевский муниципальный район","Старобалтачевский сельский совет","80608431"]
[{"$nulls":4},"Балтачевский муниципальный район","Староянбаевский сельский совет","80608434"]
[{"$nulls":4},"Балтачевский муниципальный район","Тошкуровский сельский совет","80608437"]
[{"$nulls":4},"Балтачевский муниципальный район","Тучубаевский сельский совет","80608440"]
[{"$nulls":4},"Балтачевский муниципальный район","Шавьядинский сельский совет","80608441"]
[{"$nulls":4},"Балтачевский муниципальный район","Штандинский сельский совет","80608443"]
[{"$nulls":4},"Балтачевский муниципальный район","Ялангачевский сельский совет","80608448"]
[{"$nulls":4},"Белебеевский муниципальный район"," Все муниципальные образования","80609000"]
[{"$nulls":4},"Белебеевский муниципальный район","Аксаковский сельский совет","80609401"]
[{"$nulls":4},"Белебеевский муниципальный район","Анновский сельский совет","80609413"]
[{"$nulls":4},"Белебеевский муниципальный район","Баженовский сельский совет","80609402"]
[{"$nulls":4},"Белебеевский муниципальный район","Город Белебей","80609101"]
[{"$nulls":4},"Белебеевский муниципальный район","Донской сельский совет","80609404"]
[{"$nulls":4},"Белебеевский муниципальный район","Ермолкинский сельский совет","80609407"]
[{"$nulls":4},"Белебеевский муниципальный район","Знаменский сельский совет","80609410"]
[{"$nulls":4},"Белебеевский муниципальный район","Максим-Горьковский сельский совет","80609416"]
[{"$nulls":4},"Белебеевский муниципальный район","Малиновский сельский совет","80609419"]
[{"$nulls":4},"Белебеевский муниципальный район","Метевбашевский сельский совет","80609425"]
[{"$nulls":4},"Белебеевский муниципальный район","Приютовский поссовет","80609165"]
[{"$nulls":4},"Белебеевский муниципальный район","Рассветовский сельский совет","80609428"]
[{"$nulls":4},"Белебеевский муниципальный район","Семенкинский сельский совет","80609431"]
[{"$nulls":4},"Белебеевский муниципальный район","Слакбашевский сельский совет","80609434"]
[{"$nulls":4},"Белебеевский муниципальный район","Тузлукушевский сельский совет","80609437"]
[{"$nulls":4},"Белебеевский муниципальный район","Усень-Ивановский сельский совет","80609440"]
[{"$nulls":4},"Белебеевский муниципальный район","Шаровский сельский совет","80609443"]
[{"$nulls":4},"Белокатайский муниципальный район"," Все муниципальные образования","80610000"]
[{"$nulls":4},"Белокатайский муниципальный район","Атаршинский сельский совет","80610402"]
[{"$nulls":4},"Белокатайский муниципальный район","Белянковский сельский совет","80610404"]
[{"$nulls":4},"Белокатайский муниципальный район","Емашинский сельский совет","80610407"]
[{"$nulls":4},"Белокатайский муниципальный район","Карлыхановский сельский совет","80610413"]
[{"$nulls":4},"Белокатайский муниципальный район","Майгазинский сельский совет","80610416"]
[{"$nulls":4},"Белокатайский муниципальный район","Нижнеискушинский сельский совет","80610419"]
[{"$nulls":4},"Белокатайский муниципальный район","Новобелокатайский сельский совет","80610422"]
[{"$nulls":4},"Белокатайский муниципальный район","Ногушинский сельский совет","80610425"]
[{"$nulls":4},"Белокатайский муниципальный район","Старобелокатайский сельский совет","80610428"]
[{"$nulls":4},"Белокатайский муниципальный район","Тардавский сельский совет","80610431"]
[{"$nulls":4},"Белокатайский муниципальный район","Ургалинский сельский совет","80610434"]
[{"$nulls":4},"Белокатайский муниципальный район","Утяшевский сельский совет","80610437"]
[{"$nulls":4},"Белокатайский муниципальный район","Яныбаевский сельский совет","80610440"]
[{"$nulls":4},"Белорецкий муниципальный район"," Все муниципальные образования","80611000"]
[{"$nulls":4},"Белорецкий муниципальный район","Абзаковский сельский совет","80611404"]
[{"$nulls":4},"Белорецкий муниципальный район","Азикеевский сельский совет","80611407"]
[{"$nulls":4},"Белорецкий муниципальный район","Ассинский сельский совет","80611410"]
[{"$nulls":4},"Белорецкий муниципальный район","Верхнеавзянский сельский совет","80611415"]
[{"$nulls":4},"Белорецкий муниципальный район","Город Белорецк","80611101"]
[{"$nulls":4},"Белорецкий муниципальный район","Железнодорожный сельский совет","80611418"]
[{"$nulls":4},"Белорецкий муниципальный район","Зигазинский сельский совет","80611416"]
[{"$nulls":4},"Белорецкий муниципальный район","Зуяковский сельский совет","80611417"]
[{"$nulls":4},"Белорецкий муниципальный район","Инзерский сельский совет","80611420"]
[{"$nulls":4},"Белорецкий муниципальный район","Ишлинский сельский совет","80611422"]
[{"$nulls":4},"Белорецкий муниципальный район","Кагинский сельский совет","80611425"]
[{"$nulls":4},"Белорецкий муниципальный район","Ломовский сельский совет","80611427"]
[{"$nulls":4},"Белорецкий муниципальный район","Николаевский сельский совет","80611434"]
[{"$nulls":4},"Белорецкий муниципальный район","Нурский сельский совет","80611440"]
[{"$nulls":4},"Белорецкий муниципальный район","Серменевский сельский совет","80611443"]
[{"$nulls":4},"Белорецкий муниципальный район","Сосновский сельский совет","80611446"]
[{"$nulls":4},"Белорецкий муниципальный район","Тирлянский сельский совет","80611448"]
[{"$nulls":4},"Белорецкий муниципальный район","Туканский сельский совет","80611449"]
[{"$nulls":4},"Белорецкий муниципальный район","Узянский сельский совет","80611452"]
[{"$nulls":4},"Белорецкий муниципальный район","Шигаевский сельский совет","80611455"]
[{"$nulls":4},"Бижбулякский муниципальный район"," Все муниципальные образования","80612000"]
[{"$nulls":4},"Бижбулякский муниципальный район","Аитовский сельский совет","80612404"]
[{"$nulls":4},"Бижбулякский муниципальный район","Базлыкский сельский совет","80612407"]
[{"$nulls":4},"Бижбулякский муниципальный район","Бижбулякский сельский совет","80612410"]
[{"$nulls":4},"Бижбулякский муниципальный район","Биккуловский сельский совет","80612413"]
[{"$nulls":4},"Бижбулякский муниципальный район","Демский сельский совет","80612416"]
[{"$nulls":4},"Бижбулякский муниципальный район","Елбулактамакский сельский совет","80612419"]
[{"$nulls":4},"Бижбулякский муниципальный район","Зириклинский сельский совет","80612422"]
[{"$nulls":4},"Бижбулякский муниципальный район","Калининский сельский совет","80612425"]
[{"$nulls":4},"Бижбулякский муниципальный район","Каменский сельский совет","80612428"]
[{"$nulls":4},"Бижбулякский муниципальный район","Кенгер-Менеузовский сельский совет","80612431"]
[{"$nulls":4},"Бижбулякский муниципальный район","Кош-Елгинский сельский совет","80612440"]
[{"$nulls":4},"Бижбулякский муниципальный район","Михайловский сельский совет","80612442"]
[{"$nulls":4},"Бижбулякский муниципальный район","Сухореченский сельский совет","80612443"]
[{"$nulls":4},"Бирский муниципальный район"," Все муниципальные образования","80613000"]
[{"$nulls":4},"Бирский муниципальный район","Бахтыбаевский сельский совет","80613407"]
[{"$nulls":4},"Бирский муниципальный район","Березовский сельский совет","80613409"]
[{"$nulls":4},"Бирский муниципальный район","Бурновский сельский совет","80613408"]
[{"$nulls":4},"Бирский муниципальный район","Верхнелачентауский сельский совет","80613410"]
[{"$nulls":4},"Бирский муниципальный район","Город Бирск","80613101"]
[{"$nulls":4},"Бирский муниципальный район","Калинниковский сельский совет","80613416"]
[{"$nulls":4},"Бирский муниципальный район","Кусекеевский сельский совет","80613419"]
[{"$nulls":4},"Бирский муниципальный район","Маядыковский сельский совет","80613422"]
[{"$nulls":4},"Бирский муниципальный район","Осиновский сельский совет","80613425"]
[{"$nulls":4},"Бирский муниципальный район","Силантьевский сельский совет","80613431"]
[{"$nulls":4},"Бирский муниципальный район","Старобазановский сельский совет","80613434"]
[{"$nulls":4},"Бирский муниципальный район","Старопетровский сельский совет","80613437"]
[{"$nulls":4},"Бирский муниципальный район","Сусловский сельский совет","80613440"]
[{"$nulls":4},"Бирский муниципальный район","Угузевский сельский совет","80613443"]
[{"$nulls":4},"Бирский муниципальный район","Чишминский сельский совет","80613446"]
[{"$nulls":4},"Благоварский муниципальный район"," Все муниципальные образования","80614000"]
[{"$nulls":4},"Благоварский муниципальный район","Алексеевский сельский совет","80614404"]
[{"$nulls":4},"Благоварский муниципальный район","Балышлинский сельский совет","80614407"]
[{"$nulls":4},"Благоварский муниципальный район","Благоварский сельский совет","80614410"]
[{"$nulls":4},"Благоварский муниципальный район","Дмитриевский сельский совет","80614413"]
[{"$nulls":4},"Благоварский муниципальный район","Каргалинский сельский совет","80614416"]
[{"$nulls":4},"Благоварский муниципальный район","Кашкалашинский сельский совет","80614419"]
[{"$nulls":4},"Благоварский муниципальный район","Кучербаевский сельский совет","80614422"]
[{"$nulls":4},"Благоварский муниципальный район","Мирновский сельский совет","80614423"]
[{"$nulls":4},"Благоварский муниципальный район","Первомайский сельский совет","80614424"]
[{"$nulls":4},"Благоварский муниципальный район","Тановский сельский совет","80614428"]
[{"$nulls":4},"Благоварский муниципальный район","Троицкий сельский совет","80614431"]
[{"$nulls":4},"Благоварский муниципальный район","Удрякбашевский сельский совет","80614434"]
[{"$nulls":4},"Благоварский муниципальный район","Языковский сельский совет","80614437"]
[{"$nulls":4},"Благоварский муниципальный район","Ямакаевский сельский совет","80614440"]
[{"$nulls":4},"Благоварский муниципальный район","Янышевский сельский совет","80614443"]
[{"$nulls":4},"Благовещенский муниципальный район"," Все муниципальные образования","80615000"]
[{"$nulls":4},"Благовещенский муниципальный район","Бедеево-Полянский сельский совет","80615404"]
[{"$nulls":4},"Благовещенский муниципальный район","Богородский сельский совет","80615407"]
[{"$nulls":4},"Благовещенский муниципальный район","Волковский сельский совет","80615413"]
[{"$nulls":4},"Благовещенский муниципальный район","Город Благовещенск","80615101"]
[{"$nulls":4},"Благовещенский муниципальный район","Изяковский сельский совет","80615419"]
[{"$nulls":4},"Благовещенский муниципальный район","Иликовский сельский совет","80615422"]
[{"$nulls":4},"Благовещенский муниципальный район","Ильино-Полянский сельский совет","80615425"]
[{"$nulls":4},"Благовещенский муниципальный район","Николаевский сельский совет","80615428"]
[{"$nulls":4},"Благовещенский муниципальный район","Новонадеждинский сельский совет","80615431"]
[{"$nulls":4},"Благовещенский муниципальный район","Октябрьский сельский совет","80615434"]
[{"$nulls":4},"Благовещенский муниципальный район","Орловский сельский совет","80615437"]
[{"$nulls":4},"Благовещенский муниципальный район","Покровский сельский совет","80615440"]
[{"$nulls":4},"Благовещенский муниципальный район","Саннинский сельский совет","80615443"]
[{"$nulls":4},"Благовещенский муниципальный район","Старонадеждинский сельский совет","80615449"]
[{"$nulls":4},"Благовещенский муниципальный район","Тугайский сельский совет","80615453"]
[{"$nulls":4},"Благовещенский муниципальный район","Удельно-Дуванейский сельский совет","80615461"]
[{"$nulls":4},"Буздякский муниципальный район"," Все муниципальные образования","80617000"]
[{"$nulls":4},"Буздякский муниципальный район","Арслановский сельский совет","80617404"]
[{"$nulls":4},"Буздякский муниципальный район","Буздякский сельский совет","80617407"]
[{"$nulls":4},"Буздякский муниципальный район","Гафурийский сельский совет","80617410"]
[{"$nulls":4},"Буздякский муниципальный район","Канлы-Туркеевский сельский совет","80617413"]
[{"$nulls":4},"Буздякский муниципальный район","Каранский сельский совет","80617416"]
[{"$nulls":4},"Буздякский муниципальный район","Килимовский сельский совет","80617419"]
[{"$nulls":4},"Буздякский муниципальный район","Копей-Кубовский сельский совет","80617422"]
[{"$nulls":4},"Буздякский муниципальный район","Кузеевский сельский совет","80617425"]
[{"$nulls":4},"Буздякский муниципальный район","Сабаевский сельский совет","80617431"]
[{"$nulls":4},"Буздякский муниципальный район","Тавларовский сельский совет","80617437"]
[{"$nulls":4},"Буздякский муниципальный район","Тюрюшевский сельский совет","80617440"]
[{"$nulls":4},"Буздякский муниципальный район","Уртакульский сельский совет","80617446"]
[{"$nulls":4},"Бураевский муниципальный район"," Все муниципальные образования","80618000"]
[{"$nulls":4},"Бураевский муниципальный район","Азяковский сельский совет","80618404"]
[{"$nulls":4},"Бураевский муниципальный район","Бадраковский сельский совет","80618407"]
[{"$nulls":4},"Бураевский муниципальный район","Бураевский сельский совет","80618413"]
[{"$nulls":4},"Бураевский муниципальный район","Ванышевский сельский совет","80618416"]
[{"$nulls":4},"Бураевский муниципальный район","Вострецовский сельский совет","80618419"]
[{"$nulls":4},"Бураевский муниципальный район","Каинлыковский сельский совет","80618422"]
[{"$nulls":4},"Бураевский муниципальный район","Кашкалевский сельский совет","80618425"]
[{"$nulls":4},"Бураевский муниципальный район","Кузбаевский сельский совет","80618431"]
[{"$nulls":4},"Бураевский муниципальный район","Кушманаковский сельский совет","80618428"]
[{"$nulls":4},"Бураевский муниципальный район","Тазларовский сельский совет","80618437"]
[{"$nulls":4},"Бураевский муниципальный район","Тангатаровский сельский совет","80618440"]
[{"$nulls":4},"Бураевский муниципальный район","Тепляковский сельский совет","80618443"]
[{"$nulls":4},"Бураевский муниципальный район","Челкаковский сельский совет","80618446"]
[{"$nulls":4},"Бурзянский муниципальный район"," Все муниципальные образования","80619000"]
[{"$nulls":4},"Бурзянский муниципальный район","Аскаровский сельский совет","80619404"]
[{"$nulls":4},"Бурзянский муниципальный район","Атиковский сельский совет","80619407"]
[{"$nulls":4},"Бурзянский муниципальный район","Байгазинский сельский совет","80619409"]
[{"$nulls":4},"Бурзянский муниципальный район","Байназаровский сельский совет","80619410"]
[{"$nulls":4},"Бурзянский муниципальный район","Галиакберовский сельский совет","80619413"]
[{"$nulls":4},"Бурзянский муниципальный район","Иргизлинский сельский совет","80619416"]
[{"$nulls":4},"Бурзянский муниципальный район","Киекбаевский сельский совет","80619419"]
[{"$nulls":4},"Бурзянский муниципальный район","Кипчакский сельский совет","80619420"]
[{"$nulls":4},"Бурзянский муниципальный район","Кулганинский сельский совет","80619440"]
[{"$nulls":4},"Бурзянский муниципальный район","Старомунасиповский сельский совет","80619422"]
[{"$nulls":4},"Бурзянский муниципальный район","Старосубхангуловский сельский совет","80619425"]
[{"$nulls":4},"Бурзянский муниципальный район","Тимировский сельский совет","80619430"]
[{"$nulls":4},"Гафурийский муниципальный район"," Все муниципальные образования","80621000"]
[{"$nulls":4},"Гафурийский муниципальный район","Белоозерский сельский совет","80621407"]
[{"$nulls":4},"Гафурийский муниципальный район","Бельский сельский совет","80621410"]
[{"$nulls":4},"Гафурийский муниципальный район","Бурлинский сельский совет","80621413"]
[{"$nulls":4},"Гафурийский муниципальный район","Буруновский сельский совет","80621414"]
[{"$nulls":4},"Гафурийский муниципальный район","Зилим-Карановский сельский совет","80621416"]
[{"$nulls":4},"Гафурийский муниципальный район","Имендяшевский сельский совет","80621419"]
[{"$nulls":4},"Гафурийский муниципальный район","Ковардинский сельский совет","80621422"]
[{"$nulls":4},"Гафурийский муниципальный район","Красноусольский сельский совет","80621423"]
[{"$nulls":4},"Гафурийский муниципальный район","Мраковский сельский совет","80621425"]
[{"$nulls":4},"Гафурийский муниципальный район","Саитбабинский сельский совет","80621428"]
[{"$nulls":4},"Гафурийский муниципальный район","Табынский сельский совет","80621431"]
[{"$nulls":4},"Гафурийский муниципальный район","Ташбукановский сельский совет","80621434"]
[{"$nulls":4},"Гафурийский муниципальный район","Ташлинский сельский совет","80621437"]
[{"$nulls":4},"Гафурийский муниципальный район","Толпаровский сельский совет","80621440"]
[{"$nulls":4},"Гафурийский муниципальный район","Утяковский сельский совет","80621443"]
[{"$nulls":4},"Гафурийский муниципальный район","Янгискаинский сельский совет","80621446"]
[{"$nulls":4},"Город Агидель","Город Агидель","80703000"]
[{"$nulls":4},"Город Кумертау","Город Кумертау","80723000"]
[{"$nulls":4},"Город Нефтекамск","Город Нефтекамск","80727000"]
[{"$nulls":4},"Город Октябрьский","Город Октябрьский","80735000"]
[{"$nulls":4},"Город Салават","Город Салават","80739000"]
[{"$nulls":4},"Город Сибай","Город Сибай","80743000"]
[{"$nulls":4},"Город Стерлитамак","Город Стерлитамак","80745000"]
[{"$nulls":4},"Город Уфа","Город Уфа","80701000"]
[{"$nulls":4},"Давлекановский муниципальный район"," Все муниципальные образования","80622000"]
[{"$nulls":4},"Давлекановский муниципальный район","Алгинский сельский совет","80622404"]
[{"$nulls":4},"Давлекановский муниципальный район","Бик-Кармалинский сельский совет","80622410"]
[{"$nulls":4},"Давлекановский муниципальный район","Город Давлеканово","80622101"]
[{"$nulls":4},"Давлекановский муниципальный район","Ивановский сельский совет","80622413"]
[{"$nulls":4},"Давлекановский муниципальный район","Имай-Кармалинский сельский совет","80622416"]
[{"$nulls":4},"Давлекановский муниципальный район","Кадыргуловский сельский совет","80622419"]
[{"$nulls":4},"Давлекановский муниципальный район","Казангуловский сельский совет","80622422"]
[{"$nulls":4},"Давлекановский муниципальный район","Кидрячевский сельский совет","80622425"]
[{"$nulls":4},"Давлекановский муниципальный район","Курманкеевский сельский совет","80622428"]
[{"$nulls":4},"Давлекановский муниципальный район","Микяшевский сельский совет","80622431"]
[{"$nulls":4},"Давлекановский муниципальный район","Поляковский сельский совет","80622434"]
[{"$nulls":4},"Давлекановский муниципальный район","Раевский сельский совет","80622437"]
[{"$nulls":4},"Давлекановский муниципальный район","Рассветовский сельский совет","80622440"]
[{"$nulls":4},"Давлекановский муниципальный район","Сергиопольский сельский совет","80622443"]
[{"$nulls":4},"Давлекановский муниципальный район","Соколовский сельский совет","80622444"]
[{"$nulls":4},"Давлекановский муниципальный район","Чуюнчинский сельский совет","80622446"]
[{"$nulls":4},"Давлекановский муниципальный район","Шестаевский сельский совет","80622449"]
[{"$nulls":4},"Дуванский муниципальный район"," Все муниципальные образования","80623000"]
[{"$nulls":4},"Дуванский муниципальный район","Ариевский сельский совет","80623404"]
[{"$nulls":4},"Дуванский муниципальный район","Вознесенский сельский совет","80623406"]
[{"$nulls":4},"Дуванский муниципальный район","Дуванский сельский совет","80623407"]
[{"$nulls":4},"Дуванский муниципальный район","Заимкинский сельский совет","80623413"]
[{"$nulls":4},"Дуванский муниципальный район","Лемазинский сельский совет","80623419"]
[{"$nulls":4},"Дуванский муниципальный район","Месягутовский сельский совет","80623422"]
[{"$nulls":4},"Дуванский муниципальный район","Метелинский сельский совет","80623425"]
[{"$nulls":4},"Дуванский муниципальный район","Михайловский сельский совет","80623428"]
[{"$nulls":4},"Дуванский муниципальный район","Рухтинский сельский совет","80623431"]
[{"$nulls":4},"Дуванский муниципальный район","Сальевский сельский совет","80623433"]
[{"$nulls":4},"Дуванский муниципальный район","Сикиязский сельский совет","80623434"]
[{"$nulls":4},"Дуванский муниципальный район","Улькундинский сельский совет","80623440"]
[{"$nulls":4},"Дуванский муниципальный район","Ярославский сельский совет","80623443"]
[{"$nulls":4},"Дюртюлинский муниципальный район"," Все муниципальные образования","80624000"]
[{"$nulls":4},"Дюртюлинский муниципальный район","Ангасякский сельский совет","80624404"]
[{"$nulls":4},"Дюртюлинский муниципальный район","Асяновский сельский совет","80624407"]
[{"$nulls":4},"Дюртюлинский муниципальный район","Город Дюртюли","80624101"]
[{"$nulls":4},"Дюртюлинский муниципальный район","Исмаиловский сельский совет","80624410"]
[{"$nulls":4},"Дюртюлинский муниципальный район","Куккуяновский сельский совет","80624413"]
[{"$nulls":4},"Дюртюлинский муниципальный район","Маядыковский сельский совет","80624416"]
[{"$nulls":4},"Дюртюлинский муниципальный район","Московский сельский совет","80624422"]
[{"$nulls":4},"Дюртюлинский муниципальный район","Семилетовский сельский совет","80624430"]
[{"$nulls":4},"Дюртюлинский муниципальный район","Старобаишевский сельский совет","80624431"]
[{"$nulls":4},"Дюртюлинский муниципальный район","Староянтузовский сельский совет","80624434"]
[{"$nulls":4},"Дюртюлинский муниципальный район","Суккуловский сельский совет","80624437"]
[{"$nulls":4},"Дюртюлинский муниципальный район","Таймурзинский сельский совет","80624440"]
[{"$nulls":4},"Дюртюлинский муниципальный район","Такарликовский сельский совет","80624443"]
[{"$nulls":4},"Дюртюлинский муниципальный район","Учпилинский сельский совет","80624447"]
[{"$nulls":4},"Дюртюлинский муниципальный район","Черлаковский сельский совет","80624449"]
[{"$nulls":4},"Ермекеевский муниципальный район"," Все муниципальные образования","80625000"]
[{"$nulls":4},"Ермекеевский муниципальный район","Бекетовский сельский совет","80625402"]
[{"$nulls":4},"Ермекеевский муниципальный район","Восьмомартовский сельский совет","80625404"]
[{"$nulls":4},"Ермекеевский муниципальный район","Ермекеевский сельский совет","80625407"]
[{"$nulls":4},"Ермекеевский муниципальный район","Кызыл-Ярский сельский совет","80625411"]
[{"$nulls":4},"Ермекеевский муниципальный район","Нижнеулу-Елгинский сельский совет","80625413"]
[{"$nulls":4},"Ермекеевский муниципальный район","Рятамакский сельский совет","80625416"]
[{"$nulls":4},"Ермекеевский муниципальный район","Спартакский сельский совет","80625422"]
[{"$nulls":4},"Ермекеевский муниципальный район","Среднекарамалинский сельский совет","80625425"]
[{"$nulls":4},"Ермекеевский муниципальный район","Старосуллинский сельский совет","80625428"]
[{"$nulls":4},"Ермекеевский муниципальный район","Старотураевский сельский совет","80625431"]
[{"$nulls":4},"Ермекеевский муниципальный район","Суккуловский сельский совет","80625434"]
[{"$nulls":4},"Ермекеевский муниципальный район","Тарказинский сельский совет","80625437"]
[{"$nulls":4},"Ермекеевский муниципальный район","Усман-Ташлинский сельский совет","80625440"]
[{"$nulls":4},"ЗАТО город Межгорье","ЗАТО город Межгорье","80707000"]
[{"$nulls":4},"Зианчуринский муниципальный район"," Все муниципальные образования","80626000"]
[{"$nulls":4},"Зианчуринский муниципальный район","Абзановский сельский совет","80626404"]
[{"$nulls":4},"Зианчуринский муниципальный район","Абуляисовский сельский совет","80626405"]
[{"$nulls":4},"Зианчуринский муниципальный район","Байдавлетовский сельский совет","80626407"]
[{"$nulls":4},"Зианчуринский муниципальный район","Баишевский сельский совет","80626406"]
[{"$nulls":4},"Зианчуринский муниципальный район","Бикбауский сельский совет","80626410"]
[{"$nulls":4},"Зианчуринский муниципальный район","Исянгуловский сельский совет","80626416"]
[{"$nulls":4},"Зианчуринский муниципальный район","Казанбулакский сельский совет","80626419"]
[{"$nulls":4},"Зианчуринский муниципальный район","Муйнакский сельский совет","80626422"]
[{"$nulls":4},"Зианчуринский муниципальный район","Новопетровский сельский совет","80626425"]
[{"$nulls":4},"Зианчуринский муниципальный район","Новочебенкинский сельский совет","80626428"]
[{"$nulls":4},"Зианчуринский муниципальный район","Сакмарский сельский совет","80626431"]
[{"$nulls":4},"Зианчуринский муниципальный район","Суренский сельский совет","80626434"]
[{"$nulls":4},"Зианчуринский муниципальный район","Тазларовский сельский совет","80626437"]
[{"$nulls":4},"Зианчуринский муниципальный район","Утягуловский сельский совет","80626440"]
[{"$nulls":4},"Зианчуринский муниципальный район","Яныбаевский сельский совет","80626443"]
[{"$nulls":4},"Зилаирский муниципальный район"," Все муниципальные образования","80627000"]
[{"$nulls":4},"Зилаирский муниципальный район","Бердяшский сельский совет","80627404"]
[{"$nulls":4},"Зилаирский муниципальный район","Верхнегалеевский сельский совет","80627410"]
[{"$nulls":4},"Зилаирский муниципальный район","Дмитриевский сельский совет","80627413"]
[{"$nulls":4},"Зилаирский муниципальный район","Зилаирский сельский совет","80627416"]
[{"$nulls":4},"Зилаирский муниципальный район","Ивано-Кувалатский сельский совет","80627419"]
[{"$nulls":4},"Зилаирский муниципальный район","Кананикольский сельский совет","80627421"]
[{"$nulls":4},"Зилаирский муниципальный район","Канзафаровский сельский совет","80627422"]
[{"$nulls":4},"Зилаирский муниципальный район","Кашкаровский сельский совет","80627423"]
[{"$nulls":4},"Зилаирский муниципальный район","Матраевский сельский совет","80627425"]
[{"$nulls":4},"Зилаирский муниципальный район","Сабыровский сельский совет","80627432"]
[{"$nulls":4},"Зилаирский муниципальный район","Уркасский сельский совет","80627434"]
[{"$nulls":4},"Зилаирский муниципальный район","Юлдыбаевский сельский совет","80627436"]
[{"$nulls":4},"Зилаирский муниципальный район","Ямансазский сельский совет","80627442"]
[{"$nulls":4},"Иглинский муниципальный район"," Все муниципальные образования","80628000"]
[{"$nulls":4},"Иглинский муниципальный район","Акбердинский сельский совет","80628403"]
[{"$nulls":4},"Иглинский муниципальный район","Ауструмский сельский совет","80628405"]
[{"$nulls":4},"Иглинский муниципальный район","Балтийский сельский совет","80628410"]
[{"$nulls":4},"Иглинский муниципальный район","Ивано-Казанский сельский совет","80628415"]
[{"$nulls":4},"Иглинский муниципальный район","Иглинский сельский совет","80628416"]
[{"$nulls":4},"Иглинский муниципальный район","Калтымановский сельский совет","80628420"]
[{"$nulls":4},"Иглинский муниципальный район","Кальтовский сельский совет","80628425"]
[{"$nulls":4},"Иглинский муниципальный район","Красновосходский сельский совет","80628430"]
[{"$nulls":4},"Иглинский муниципальный район","Кудеевский сельский совет","80628432"]
[{"$nulls":4},"Иглинский муниципальный район","Лемезинский сельский совет","80628435"]
[{"$nulls":4},"Иглинский муниципальный район","Майский сельский совет","80628440"]
[{"$nulls":4},"Иглинский муниципальный район","Надеждинский сельский совет","80628445"]
[{"$nulls":4},"Иглинский муниципальный район","Охлебининский сельский совет","80628450"]
[{"$nulls":4},"Иглинский муниципальный район","Тавтимановский сельский совет","80628455"]
[{"$nulls":4},"Иглинский муниципальный район","Турбаслинский сельский совет","80628460"]
[{"$nulls":4},"Иглинский муниципальный район","Уктеевский сельский совет","80628470"]
[{"$nulls":4},"Иглинский муниципальный район","Улу-Телякский сельский совет","80628472"]
[{"$nulls":4},"Иглинский муниципальный район","Урманский сельский совет","80628474"]
[{"$nulls":4},"Иглинский муниципальный район","Чуваш-Кубовский сельский совет","80628480"]
[{"$nulls":4},"Илишевский муниципальный район"," Все муниципальные образования","80630000"]
[{"$nulls":4},"Илишевский муниципальный район","Аккузевский сельский совет","80630404"]
[{"$nulls":4},"Илишевский муниципальный район","Андреевский сельский совет","80630408"]
[{"$nulls":4},"Илишевский муниципальный район","Базитамакский сельский совет","80630412"]
[{"$nulls":4},"Илишевский муниципальный район","Бишкураевский сельский совет","80630416"]
[{"$nulls":4},"Илишевский муниципальный район","Дюмеевский сельский совет","80630424"]
[{"$nulls":4},"Илишевский муниципальный район","Игметовский сельский совет","80630426"]
[{"$nulls":4},"Илишевский муниципальный район","Исаметовский сельский совет","80630428"]
[{"$nulls":4},"Илишевский муниципальный район","Исанбаевский сельский совет","80630432"]
[{"$nulls":4},"Илишевский муниципальный район","Итеевский сельский совет","80630436"]
[{"$nulls":4},"Илишевский муниципальный район","Ишкаровский сельский совет","80630440"]
[{"$nulls":4},"Илишевский муниципальный район","Кадыровский сельский совет","80630444"]
[{"$nulls":4},"Илишевский муниципальный район","Карабашевский сельский совет","80630448"]
[{"$nulls":4},"Илишевский муниципальный район","Кужбахтинский сельский совет","80630452"]
[{"$nulls":4},"Илишевский муниципальный район","Новомедведевский сельский совет","80630456"]
[{"$nulls":4},"Илишевский муниципальный район","Рсаевский сельский совет","80630460"]
[{"$nulls":4},"Илишевский муниципальный район","Старокуктовский сельский совет","80630464"]
[{"$nulls":4},"Илишевский муниципальный район","Сюльтинский сельский совет","80630468"]
[{"$nulls":4},"Илишевский муниципальный район","Урметовский сельский совет","80630472"]
[{"$nulls":4},"Илишевский муниципальный район","Черекулевский сельский совет","80630476"]
[{"$nulls":4},"Илишевский муниципальный район","Юнновский сельский совет","80630478"]
[{"$nulls":4},"Илишевский муниципальный район","Ябалаковский сельский совет","80630480"]
[{"$nulls":4},"Илишевский муниципальный район","Яркеевский сельский совет","80630484"]
[{"$nulls":4},"Ишимбайский муниципальный район"," Все муниципальные образования","80631000"]
[{"$nulls":4},"Ишимбайский муниципальный район","Арметовский сельский совет","80631405"]
[{"$nulls":4},"Ишимбайский муниципальный район","Байгузинский сельский совет","80631415"]
[{"$nulls":4},"Ишимбайский муниципальный район","Верхоторский сельский совет","80631425"]
[{"$nulls":4},"Ишимбайский муниципальный район","Город Ишимбай","80631101"]
[{"$nulls":4},"Ишимбайский муниципальный район","Иткуловский сельский совет","80631430"]
[{"$nulls":4},"Ишимбайский муниципальный район","Ишеевский сельский совет","80631435"]
[{"$nulls":4},"Ишимбайский муниципальный район","Кузяновский сельский совет","80631440"]
[{"$nulls":4},"Ишимбайский муниципальный район","Кулгунинский сельский совет","80631445"]
[{"$nulls":4},"Ишимбайский муниципальный район","Макаровский сельский совет","80631450"]
[{"$nulls":4},"Ишимбайский муниципальный район","Петровский сельский совет","80631455"]
[{"$nulls":4},"Ишимбайский муниципальный район","Сайрановский сельский совет","80631460"]
[{"$nulls":4},"Ишимбайский муниципальный район","Скворчихинский сельский совет","80631470"]
[{"$nulls":4},"Ишимбайский муниципальный район","Урман-Бишкадакский сельский совет","80631475"]
[{"$nulls":4},"Ишимбайский муниципальный район","Янурусовский сельский совет","80631480"]
[{"$nulls":4},"Калтасинский муниципальный район"," Все муниципальные образования","80633000"]
[{"$nulls":4},"Калтасинский муниципальный район","Амзибашевский сельский совет","80633403"]
[{"$nulls":4},"Калтасинский муниципальный район","Большекачаковский сельский совет","80633405"]
[{"$nulls":4},"Калтасинский муниципальный район","Калегинский сельский совет","80633415"]
[{"$nulls":4},"Калтасинский муниципальный район","Калмиябашевский сельский совет","80633420"]
[{"$nulls":4},"Калтасинский муниципальный район","Калтасинский сельский совет","80633425"]
[{"$nulls":4},"Калтасинский муниципальный район","Кельтеевский сельский совет","80633430"]
[{"$nulls":4},"Калтасинский муниципальный район","Краснохолмский сельский совет","80633447"]
[{"$nulls":4},"Калтасинский муниципальный район","Нижнекачмашевский сельский совет","80633445"]
[{"$nulls":4},"Калтасинский муниципальный район","Новокильбахтинский сельский совет","80633446"]
[{"$nulls":4},"Калтасинский муниципальный район","Старояшевский сельский совет","80633452"]
[{"$nulls":4},"Калтасинский муниципальный район","Тюльдинский сельский совет","80633450"]
[{"$nulls":4},"Караидельский муниципальный район"," Все муниципальные образования","80634000"]
[{"$nulls":4},"Караидельский муниципальный район","Артакульский сельский совет","80634404"]
[{"$nulls":4},"Караидельский муниципальный район","Байкибашевский сельский совет","80634412"]
[{"$nulls":4},"Караидельский муниципальный район","Байкинский сельский совет","80634416"]
[{"$nulls":4},"Караидельский муниципальный район","Верхнесуянский сельский совет","80634424"]
[{"$nulls":4},"Караидельский муниципальный район","Караидельский сельский совет","80634432"]
[{"$nulls":4},"Караидельский муниципальный район","Караярский сельский совет","80634436"]
[{"$nulls":4},"Караидельский муниципальный район","Кирзинский сельский совет","80634440"]
[{"$nulls":4},"Караидельский муниципальный район","Куртлыкульский сельский совет","80634444"]
[{"$nulls":4},"Караидельский муниципальный район","Магинский сельский совет","80634445"]
[{"$nulls":4},"Караидельский муниципальный район","Новобердяшский сельский совет","80634452"]
[{"$nulls":4},"Караидельский муниципальный район","Новомуллакаевский сельский совет","80634456"]
[{"$nulls":4},"Караидельский муниципальный район","Озеркинский сельский совет","80634460"]
[{"$nulls":4},"Караидельский муниципальный район","Подлубовский сельский совет","80634464"]
[{"$nulls":4},"Караидельский муниципальный район","Староакбуляковский сельский совет","80634472"]
[{"$nulls":4},"Караидельский муниципальный район","Ургушевский сельский совет","80634480"]
[{"$nulls":4},"Караидельский муниципальный район","Урюш-Битуллинский сельский совет","80634484"]
[{"$nulls":4},"Караидельский муниципальный район","Явгильдинский сельский совет","80634488"]
[{"$nulls":4},"Кармаскалинский муниципальный район"," Все муниципальные образования","80635000"]
[{"$nulls":4},"Кармаскалинский муниципальный район","Адзитаровский сельский совет","80635405"]
[{"$nulls":4},"Кармаскалинский муниципальный район","Бузовьязовский сельский совет","80635415"]
[{"$nulls":4},"Кармаскалинский муниципальный район","Ефремкинский сельский совет","80635420"]
[{"$nulls":4},"Кармаскалинский муниципальный район","Кабаковский сельский совет","80635423"]
[{"$nulls":4},"Кармаскалинский муниципальный район","Камышлинский сельский совет","80635425"]
[{"$nulls":4},"Кармаскалинский муниципальный район","Карламанский сельский совет","80635430"]
[{"$nulls":4},"Кармаскалинский муниципальный район","Кармаскалинский сельский совет","80635435"]
[{"$nulls":4},"Кармаскалинский муниципальный район","Николаевский сельский совет","80635440"]
[{"$nulls":4},"Кармаскалинский муниципальный район","Новокиешкинский сельский совет","80635445"]
[{"$nulls":4},"Кармаскалинский муниципальный район","Подлубовский сельский совет","80635450"]
[{"$nulls":4},"Кармаскалинский муниципальный район","Прибельский сельский совет","80635451"]
[{"$nulls":4},"Кармаскалинский муниципальный район","Савалеевский сельский совет","80635455"]
[{"$nulls":4},"Кармаскалинский муниципальный район","Сахаевский сельский совет","80635475"]
[{"$nulls":4},"Кармаскалинский муниципальный район","Старобабичевский сельский совет","80635465"]
[{"$nulls":4},"Кармаскалинский муниципальный район","Старомусинский сельский совет","80635470"]
[{"$nulls":4},"Кармаскалинский муниципальный район","Шаймуратовский сельский совет","80635480"]
[{"$nulls":4},"Кигинский муниципальный район"," Все муниципальные образования","80636000"]
[{"$nulls":4},"Кигинский муниципальный район","Абзаевский сельский совет","80636405"]
[{"$nulls":4},"Кигинский муниципальный район","Арслановский сельский совет","80636410"]
[{"$nulls":4},"Кигинский муниципальный район","Верхнекигинский сельский совет","80636415"]
[{"$nulls":4},"Кигинский муниципальный район","Душанбековский сельский совет","80636425"]
[{"$nulls":4},"Кигинский муниципальный район","Еланлинский сельский совет","80636420"]
[{"$nulls":4},"Кигинский муниципальный район","Ибраевский сельский совет","80636430"]
[{"$nulls":4},"Кигинский муниципальный район","Кандаковский сельский совет","80636435"]
[{"$nulls":4},"Кигинский муниципальный район","Леузинский сельский совет","80636440"]
[{"$nulls":4},"Кигинский муниципальный район","Нижнекигинский сельский совет","80636445"]
[{"$nulls":4},"Краснокамский муниципальный район"," Все муниципальные образования","80637000"]
[{"$nulls":4},"Краснокамский муниципальный район","Арлановский сельский совет","80637405"]
[{"$nulls":4},"Краснокамский муниципальный район","Кариевский сельский совет","80637410"]
[{"$nulls":4},"Краснокамский муниципальный район","Куяновский сельский совет","80637412"]
[{"$nulls":4},"Краснокамский муниципальный район","Музяковский сельский совет","80637415"]
[{"$nulls":4},"Краснокамский муниципальный район","Николо-Березовский сельский совет","80637421"]
[{"$nulls":4},"Краснокамский муниципальный район","Никольский сельский совет","80637420"]
[{"$nulls":4},"Краснокамский муниципальный район","Новобуринский сельский совет","80637425"]
[{"$nulls":4},"Краснокамский муниципальный район","Новокабановский сельский совет","80637430"]
[{"$nulls":4},"Краснокамский муниципальный район","Новокаинлыковский сельский совет","80637435"]
[{"$nulls":4},"Краснокамский муниципальный район","Новонагаевский сельский совет","80637440"]
[{"$nulls":4},"Краснокамский муниципальный район","Новоянзигитовский сельский совет","80637461"]
[{"$nulls":4},"Краснокамский муниципальный район","Раздольевский сельский совет","80637443"]
[{"$nulls":4},"Краснокамский муниципальный район","Саузбашевский сельский совет","80637450"]
[{"$nulls":4},"Краснокамский муниципальный район","Шушнурский сельский совет","80637465"]
[{"$nulls":4},"Кугарчинский муниципальный район"," Все муниципальные образования","80638000"]
[{"$nulls":4},"Кугарчинский муниципальный район","Волостновский сельский совет","80638405"]
[{"$nulls":4},"Кугарчинский муниципальный район","Зареченский сельский совет","80638410"]
[{"$nulls":4},"Кугарчинский муниципальный район","Ибраевский сельский совет","80638415"]
[{"$nulls":4},"Кугарчинский муниципальный район","Ижбердинский сельский совет","80638420"]
[{"$nulls":4},"Кугарчинский муниципальный район","Иртюбякский сельский совет","80638425"]
[{"$nulls":4},"Кугарчинский муниципальный район","Исимовский сельский совет","80638430"]
[{"$nulls":4},"Кугарчинский муниципальный район","Кугарчинский сельский совет","80638440"]
[{"$nulls":4},"Кугарчинский муниципальный район","Максютовский сельский совет","80638445"]
[{"$nulls":4},"Кугарчинский муниципальный район","Мраковский сельский совет","80638450"]
[{"$nulls":4},"Кугарчинский муниципальный район","Нижнебиккузинский сельский совет","80638455"]
[{"$nulls":4},"Кугарчинский муниципальный район","Новопетровский сельский совет","80638460"]
[{"$nulls":4},"Кугарчинский муниципальный район","Нукаевский сельский совет","80638463"]
[{"$nulls":4},"Кугарчинский муниципальный район","Побоищенский сельский совет","80638470"]
[{"$nulls":4},"Кугарчинский муниципальный район","Санзяповский сельский совет","80638473"]
[{"$nulls":4},"Кугарчинский муниципальный район","Тляумбетовский сельский совет","80638475"]
[{"$nulls":4},"Кугарчинский муниципальный район","Уральский сельский совет","80638480"]
[{"$nulls":4},"Кугарчинский муниципальный район","Чапаевский сельский совет","80638483"]
[{"$nulls":4},"Кугарчинский муниципальный район","Юлдыбаевский сельский совет","80638485"]
[{"$nulls":4},"Кугарчинский муниципальный район","Юмагузинский сельский совет","80638487"]
[{"$nulls":4},"Кугарчинский муниципальный район","Ялчинский сельский совет","80638495"]
[{"$nulls":4},"Кушнаренковский муниципальный район"," Все муниципальные образования","80640000"]
[{"$nulls":4},"Кушнаренковский муниципальный район","Ахметовский сельский совет","80640405"]
[{"$nulls":4},"Кушнаренковский муниципальный район","Бакаевский сельский совет","80640410"]
[{"$nulls":4},"Кушнаренковский муниципальный район","Горьковский сельский совет","80640415"]
[{"$nulls":4},"Кушнаренковский муниципальный район","Карача-Елгинский сельский совет","80640430"]
[{"$nulls":4},"Кушнаренковский муниципальный район","Кушнаренковский сельский совет","80640435"]
[{"$nulls":4},"Кушнаренковский муниципальный район","Матвеевский сельский совет","80640440"]
[{"$nulls":4},"Кушнаренковский муниципальный район","Расмекеевский сельский совет","80640465"]
[{"$nulls":4},"Кушнаренковский муниципальный район","Старогумеровский сельский совет","80640470"]
[{"$nulls":4},"Кушнаренковский муниципальный район","Старокамышлинский сельский совет","80640475"]
[{"$nulls":4},"Кушнаренковский муниципальный район","Старокурмашевский сельский совет","80640477"]
[{"$nulls":4},"Кушнаренковский муниципальный район","Старотукмаклинский сельский совет","80640480"]
[{"$nulls":4},"Кушнаренковский муниципальный район","Шариповский сельский совет","80640490"]
[{"$nulls":4},"Куюргазинский муниципальный район"," Все муниципальные образования","80639000"]
[{"$nulls":4},"Куюргазинский муниципальный район","Бахмутский сельский совет","80639410"]
[{"$nulls":4},"Куюргазинский муниципальный район","Ермолаевский сельский совет","80639412"]
[{"$nulls":4},"Куюргазинский муниципальный район","Зяк-Ишметовский сельский совет","80639417"]
[{"$nulls":4},"Куюргазинский муниципальный район","Илькинеевский сельский совет","80639415"]
[{"$nulls":4},"Куюргазинский муниципальный район","Кривле-Илюшкинский сельский совет","80639420"]
[{"$nulls":4},"Куюргазинский муниципальный район","Ленинский сельский совет","80639425"]
[{"$nulls":4},"Куюргазинский муниципальный район","Мурапталовский сельский совет","80639435"]
[{"$nulls":4},"Куюргазинский муниципальный район","Отрадинский сельский совет","80639440"]
[{"$nulls":4},"Куюргазинский муниципальный район","Свободинский сельский совет","80639450"]
[{"$nulls":4},"Куюргазинский муниципальный район","Таймасовский сельский совет","80639455"]
[{"$nulls":4},"Куюргазинский муниципальный район","Шабагишский сельский совет","80639460"]
[{"$nulls":4},"Куюргазинский муниципальный район","Якшимбетовский сельский совет","80639465"]
[{"$nulls":4},"Мелеузовский муниципальный район"," Все муниципальные образования","80641000"]
[{"$nulls":4},"Мелеузовский муниципальный район","Абитовский сельский совет","80641402"]
[{"$nulls":4},"Мелеузовский муниципальный район","Александровский сельский совет","80641405"]
[{"$nulls":4},"Мелеузовский муниципальный район","Аптраковский сельский совет","80641410"]
[{"$nulls":4},"Мелеузовский муниципальный район","Араслановский сельский совет","80641415"]
[{"$nulls":4},"Мелеузовский муниципальный район","Воскресенский сельский совет","80641422"]
[{"$nulls":4},"Мелеузовский муниципальный район","Город Мелеуз","80641101"]
[{"$nulls":4},"Мелеузовский муниципальный район","Денисовский сельский совет","80641435"]
[{"$nulls":4},"Мелеузовский муниципальный район","Зирганский сельский совет","80641430"]
[{"$nulls":4},"Мелеузовский муниципальный район","Иштугановский сельский совет","80641445"]
[{"$nulls":4},"Мелеузовский муниципальный район","Корнеевский сельский совет","80641480"]
[{"$nulls":4},"Мелеузовский муниципальный район","Мелеузовский сельский совет","80641450"]
[{"$nulls":4},"Мелеузовский муниципальный район","Нордовский сельский совет","80641455"]
[{"$nulls":4},"Мелеузовский муниципальный район","Нугушевский сельский совет","80641460"]
[{"$nulls":4},"Мелеузовский муниципальный район","Партизанский сельский совет","80641465"]
[{"$nulls":4},"Мелеузовский муниципальный район","Первомайский сельский совет","80641470"]
[{"$nulls":4},"Мелеузовский муниципальный район","Сарышевский сельский совет","80641475"]
[{"$nulls":4},"Мелеузовский муниципальный район","Шевченковский сельский совет","80641485"]
[{"$nulls":4},"Мечетлинский муниципальный район"," Все муниципальные образования","80642000"]
[{"$nulls":4},"Мечетлинский муниципальный район","Абдуллинский сельский совет","80642401"]
[{"$nulls":4},"Мечетлинский муниципальный район","Алегазовский сельский совет","80642405"]
[{"$nulls":4},"Мечетлинский муниципальный район","Большеокинский сельский совет","80642410"]
[{"$nulls":4},"Мечетлинский муниципальный район","Большеустьикинский сельский совет","80642415"]
[{"$nulls":4},"Мечетлинский муниципальный район","Дуван-Мечетлинский сельский совет","80642420"]
[{"$nulls":4},"Мечетлинский муниципальный район","Кургатовский сельский совет","80642423"]
[{"$nulls":4},"Мечетлинский муниципальный район","Лемез-Тамакский сельский совет","80642425"]
[{"$nulls":4},"Мечетлинский муниципальный район","Малоустьикинский сельский совет","80642430"]
[{"$nulls":4},"Мечетлинский муниципальный район","Новомещеровский сельский совет","80642435"]
[{"$nulls":4},"Мечетлинский муниципальный район","Новояушевский сельский совет","80642442"]
[{"$nulls":4},"Мечетлинский муниципальный район","Ростовский сельский совет","80642445"]
[{"$nulls":4},"Мечетлинский муниципальный район","Юнусовский сельский совет","80642450"]
[{"$nulls":4},"Мишкинский муниципальный район"," Все муниципальные образования","80643000"]
[{"$nulls":4},"Мишкинский муниципальный район","Акбулатовский сельский совет","80643405"]
[{"$nulls":4},"Мишкинский муниципальный район","Баймурзинский сельский совет","80643410"]
[{"$nulls":4},"Мишкинский муниципальный район","Большесухоязовский сельский совет","80643415"]
[{"$nulls":4},"Мишкинский муниципальный район","Большешадинский сельский совет","80643420"]
[{"$nulls":4},"Мишкинский муниципальный район","Ирсаевский сельский совет","80643425"]
[{"$nulls":4},"Мишкинский муниципальный район","Кайраковский сельский совет","80643430"]
[{"$nulls":4},"Мишкинский муниципальный район","Камеевский сельский совет","80643435"]
[{"$nulls":4},"Мишкинский муниципальный район","Мавлютовский сельский совет","80643445"]
[{"$nulls":4},"Мишкинский муниципальный район","Мишкинский сельский совет","80643450"]
[{"$nulls":4},"Мишкинский муниципальный район","Новотроицкий сельский совет","80643455"]
[{"$nulls":4},"Мишкинский муниципальный район","Староарзаматовский сельский совет","80643460"]
[{"$nulls":4},"Мишкинский муниципальный район","Тынбаевский сельский совет","80643465"]
[{"$nulls":4},"Мишкинский муниципальный район","Урьядинский сельский совет","80643470"]
[{"$nulls":4},"Мишкинский муниципальный район","Чураевский сельский совет","80643480"]
[{"$nulls":4},"Миякинский муниципальный район"," Все муниципальные образования","80644000"]
[{"$nulls":4},"Миякинский муниципальный район","Биккуловский сельский совет","80644405"]
[{"$nulls":4},"Миякинский муниципальный район","Богдановский сельский совет","80644410"]
[{"$nulls":4},"Миякинский муниципальный район","Большекаркалинский сельский совет","80644415"]
[{"$nulls":4},"Миякинский муниципальный район","Енебей-Урсаевский сельский совет","80644420"]
[{"$nulls":4},"Миякинский муниципальный район","Зильдяровский сельский совет","80644425"]
[{"$nulls":4},"Миякинский муниципальный район","Ильчигуловский сельский совет","80644428"]
[{"$nulls":4},"Миякинский муниципальный район","Карановский сельский совет","80644429"]
[{"$nulls":4},"Миякинский муниципальный район","Качегановский сельский совет","80644430"]
[{"$nulls":4},"Миякинский муниципальный район","Кожай-Семеновский сельский совет","80644435"]
[{"$nulls":4},"Миякинский муниципальный район","Менеузтамакский сельский совет","80644440"]
[{"$nulls":4},"Миякинский муниципальный район","Миякибашевский сельский совет","80644445"]
[{"$nulls":4},"Миякинский муниципальный район","Миякинский сельский совет","80644450"]
[{"$nulls":4},"Миякинский муниципальный район","Новокарамалинский сельский совет","80644460"]
[{"$nulls":4},"Миякинский муниципальный район","Сатыевский сельский совет","80644465"]
[{"$nulls":4},"Миякинский муниципальный район","Уршакбашкарамалинский сельский совет","80644470"]
[{"$nulls":4},"Нуримановский муниципальный район"," Все муниципальные образования","80645000"]
[{"$nulls":4},"Нуримановский муниципальный район","Байгильдинский сельский совет","80645405"]
[{"$nulls":4},"Нуримановский муниципальный район","Баш-Шидинский сельский совет","80645410"]
[{"$nulls":4},"Нуримановский муниципальный район","Красногорский сельский совет","80645415"]
[{"$nulls":4},"Нуримановский муниципальный район","Красноключевский сельский совет","80645416"]
[{"$nulls":4},"Нуримановский муниципальный район","Никольский сельский совет","80645420"]
[{"$nulls":4},"Нуримановский муниципальный район","Новокулевский сельский совет","80645435"]
[{"$nulls":4},"Нуримановский муниципальный район","Новосубаевский сельский совет","80645440"]
[{"$nulls":4},"Нуримановский муниципальный район","Павловский сельский совет","80645444"]
[{"$nulls":4},"Нуримановский муниципальный район","Первомайский сельский совет","80645445"]
[{"$nulls":4},"Нуримановский муниципальный район","Сарвинский сельский совет","80645450"]
[{"$nulls":4},"Нуримановский муниципальный район","Старобедеевский сельский совет","80645452"]
[{"$nulls":4},"Нуримановский муниципальный район","Староисаевский сельский совет","80645455"]
[{"$nulls":4},"Салаватский муниципальный район"," Все муниципальные образования","80647000"]
[{"$nulls":4},"Салаватский муниципальный район","Алькинский сельский совет","80647405"]
[{"$nulls":4},"Салаватский муниципальный район","Аркауловский сельский совет","80647410"]
[{"$nulls":4},"Салаватский муниципальный район","Ишимбаевский сельский совет","80647415"]
[{"$nulls":4},"Салаватский муниципальный район","Лагеревский сельский совет","80647425"]
[{"$nulls":4},"Салаватский муниципальный район","Лаклинский сельский совет","80647430"]
[{"$nulls":4},"Салаватский муниципальный район","Малоязовский сельский совет","80647435"]
[{"$nulls":4},"Салаватский муниципальный район","Мечетлинский сельский совет","80647440"]
[{"$nulls":4},"Салаватский муниципальный район","Мещегаровский сельский совет","80647445"]
[{"$nulls":4},"Салаватский муниципальный район","Мурсалимкинский сельский совет","80647447"]
[{"$nulls":4},"Салаватский муниципальный район","Насибашевский сельский совет","80647450"]
[{"$nulls":4},"Салаватский муниципальный район","Первомайский сельский совет","80647476"]
[{"$nulls":4},"Салаватский муниципальный район","Салаватский сельский совет","80647453"]
[{"$nulls":4},"Салаватский муниципальный район","Таймеевский сельский совет","80647455"]
[{"$nulls":4},"Салаватский муниципальный район","Терменевский сельский совет","80647460"]
[{"$nulls":4},"Салаватский муниципальный район","Турналинский сельский совет","80647465"]
[{"$nulls":4},"Салаватский муниципальный район","Янгантауский сельский совет","80647475"]
[{"$nulls":4},"Стерлибашевский муниципальный район"," Все муниципальные образования","80648000"]
[{"$nulls":4},"Стерлибашевский муниципальный район","Айдаралинский сельский совет","80648405"]
[{"$nulls":4},"Стерлибашевский муниципальный район","Аллагуватский сельский совет","80648402"]
[{"$nulls":4},"Стерлибашевский муниципальный район","Бакеевский сельский совет","80648410"]
[{"$nulls":4},"Стерлибашевский муниципальный район","Бузатовский сельский совет","80648415"]
[{"$nulls":4},"Стерлибашевский муниципальный район","Кабакушский сельский совет","80648418"]
[{"$nulls":4},"Стерлибашевский муниципальный район","Карагушский сельский совет","80648420"]
[{"$nulls":4},"Стерлибашевский муниципальный район","Куганакбашевский сельский совет","80648425"]
[{"$nulls":4},"Стерлибашевский муниципальный район","Кундрякский сельский совет","80648430"]
[{"$nulls":4},"Стерлибашевский муниципальный район","Сарайсинский сельский совет","80648435"]
[{"$nulls":4},"Стерлибашевский муниципальный район","Старокалкашевский сельский совет","80648440"]
[{"$nulls":4},"Стерлибашевский муниципальный район","Стерлибашевский сельский совет","80648445"]
[{"$nulls":4},"Стерлибашевский муниципальный район","Тятер-Араслановский сельский совет","80648455"]
[{"$nulls":4},"Стерлибашевский муниципальный район","Халикеевский сельский совет","80648460"]
[{"$nulls":4},"Стерлибашевский муниципальный район","Янгурчинский сельский совет","80648465"]
[{"$nulls":4},"Стерлибашевский муниципальный район","Яшергановский сельский совет","80648470"]
[{"$nulls":4},"Стерлитамакский муниципальный район"," Все муниципальные образования","80649000"]
[{"$nulls":4},"Стерлитамакский муниципальный район","Айгулевский сельский совет","80649404"]
[{"$nulls":4},"Стерлитамакский муниципальный район","Алатанинский сельский совет","80649412"]
[{"$nulls":4},"Стерлитамакский муниципальный район","Ашкадарский сельский совет","80649416"]
[{"$nulls":4},"Стерлитамакский муниципальный район","Аючевский сельский совет","80649418"]
[{"$nulls":4},"Стерлитамакский муниципальный район","Буриказгановский сельский совет","80649428"]
[{"$nulls":4},"Стерлитамакский муниципальный район","Казадаевский сельский совет","80649436"]
[{"$nulls":4},"Стерлитамакский муниципальный район","Константиноградовский сельский совет","80649420"]
[{"$nulls":4},"Стерлитамакский муниципальный район","Красноярский сельский совет","80649444"]
[{"$nulls":4},"Стерлитамакский муниципальный район","Куганакский сельский совет","80649440"]
[{"$nulls":4},"Стерлитамакский муниципальный район","Максимовский сельский совет","80649424"]
[{"$nulls":4},"Стерлитамакский муниципальный район","Наумовский сельский совет","80649448"]
[{"$nulls":4},"Стерлитамакский муниципальный район","Николаевский сельский совет","80649452"]
[{"$nulls":4},"Стерлитамакский муниципальный район","Октябрьский сельский совет","80649460"]
[{"$nulls":4},"Стерлитамакский муниципальный район","Отрадовский сельский совет","80649456"]
[{"$nulls":4},"Стерлитамакский муниципальный район","Первомайский сельский совет","80649464"]
[{"$nulls":4},"Стерлитамакский муниципальный район","Подлесненский сельский совет","80649468"]
[{"$nulls":4},"Стерлитамакский муниципальный район","Рощинский сельский совет","80649478"]
[{"$nulls":4},"Стерлитамакский муниципальный район","Рязановский сельский совет","80649480"]
[{"$nulls":4},"Стерлитамакский муниципальный район","Тюрюшлинский сельский совет","80649488"]
[{"$nulls":4},"Стерлитамакский муниципальный район","Услинский сельский совет","80649492"]
[{"$nulls":4},"Татышлинский муниципальный район"," Все муниципальные образования","80650000"]
[{"$nulls":4},"Татышлинский муниципальный район","Акбулатовский сельский совет","80650405"]
[{"$nulls":4},"Татышлинский муниципальный район","Аксаитовский сельский совет","80650410"]
[{"$nulls":4},"Татышлинский муниципальный район","Бадряшевский сельский совет","80650415"]
[{"$nulls":4},"Татышлинский муниципальный район","Буль-Кайпановский сельский совет","80650420"]
[{"$nulls":4},"Татышлинский муниципальный район","Верхнетатышлинский сельский совет","80650425"]
[{"$nulls":4},"Татышлинский муниципальный район","Кальмияровский сельский совет","80650430"]
[{"$nulls":4},"Татышлинский муниципальный район","Кальтяевский сельский совет","80650435"]
[{"$nulls":4},"Татышлинский муниципальный район","Кудашевский сельский совет","80650440"]
[{"$nulls":4},"Татышлинский муниципальный район","Курдымский сельский совет","80650445"]
[{"$nulls":4},"Татышлинский муниципальный район","Нижнебалтачевский сельский совет","80650450"]
[{"$nulls":4},"Татышлинский муниципальный район","Новотатышлинский сельский совет","80650455"]
[{"$nulls":4},"Татышлинский муниципальный район","Шулгановский сельский совет","80650460"]
[{"$nulls":4},"Татышлинский муниципальный район","Ялгыз-Наратский сельский совет","80650465"]
[{"$nulls":4},"Туймазинский муниципальный район"," Все муниципальные образования","80651000"]
[{"$nulls":4},"Туймазинский муниципальный район","Бишкураевский сельский совет","80651405"]
[{"$nulls":4},"Туймазинский муниципальный район","Верхнебишиндинский сельский совет","80651410"]
[{"$nulls":4},"Туймазинский муниципальный район","Верхнетроицкий сельский совет","80651415"]
[{"$nulls":4},"Туймазинский муниципальный район","Гафуровский сельский совет","80651417"]
[{"$nulls":4},"Туймазинский муниципальный район","Город Туймазы","80651101"]
[{"$nulls":4},"Туймазинский муниципальный район","Ильчимбетовский сельский совет","80651420"]
[{"$nulls":4},"Туймазинский муниципальный район","Какрыбашевский сельский совет","80651425"]
[{"$nulls":4},"Туймазинский муниципальный район","Кандринский сельский совет","80651427"]
[{"$nulls":4},"Туймазинский муниципальный район","Карамалы-Губеевский сельский совет","80651430"]
[{"$nulls":4},"Туймазинский муниципальный район","Каратовский сельский совет","80651435"]
[{"$nulls":4},"Туймазинский муниципальный район","Нижнетроицкий сельский совет","80651439"]
[{"$nulls":4},"Туймазинский муниципальный район","Николаевский сельский совет","80651440"]
[{"$nulls":4},"Туймазинский муниципальный район","Сайрановский сельский совет","80651445"]
[{"$nulls":4},"Туймазинский муниципальный район","Серафимовский сельский совет","80651447"]
[{"$nulls":4},"Туймазинский муниципальный район","Старотуймазинский сельский совет","80651455"]
[{"$nulls":4},"Туймазинский муниципальный район","Субханкуловский сельский совет","80651461"]
[{"$nulls":4},"Туймазинский муниципальный район","Татар-Улкановский сельский совет","80651465"]
[{"$nulls":4},"Туймазинский муниципальный район","Тюменяковский сельский совет","80651470"]
[{"$nulls":4},"Туймазинский муниципальный район","Чукадыбашевский сельский совет","80651475"]
[{"$nulls":4},"Уфимский муниципальный район"," Все муниципальные образования","80652000"]
[{"$nulls":4},"Уфимский муниципальный район","Авдонский сельский совет","80652405"]
[{"$nulls":4},"Уфимский муниципальный район","Алексеевский сельский совет","80652403"]
[{"$nulls":4},"Уфимский муниципальный район","Булгаковский сельский совет","80652410"]
[{"$nulls":4},"Уфимский муниципальный район","Дмитриевский сельский совет","80652415"]
[{"$nulls":4},"Уфимский муниципальный район","Жуковский сельский совет","80652418"]
[{"$nulls":4},"Уфимский муниципальный район","Зубовский сельский совет","80652420"]
[{"$nulls":4},"Уфимский муниципальный район","Кармасанский сельский совет","80652423"]
[{"$nulls":4},"Уфимский муниципальный район","Кирилловский сельский совет","80652425"]
[{"$nulls":4},"Уфимский муниципальный район","Красноярский сельский совет","80652430"]
[{"$nulls":4},"Уфимский муниципальный район","Миловский сельский совет","80652435"]
[{"$nulls":4},"Уфимский муниципальный район","Михайловский сельский совет","80652440"]
[{"$nulls":4},"Уфимский муниципальный район","Николаевский сельский совет","80652450"]
[{"$nulls":4},"Уфимский муниципальный район","Ольховский сельский совет","80652452"]
[{"$nulls":4},"Уфимский муниципальный район","Русско-Юрмашский сельский совет","80652455"]
[{"$nulls":4},"Уфимский муниципальный район","Таптыковский сельский совет","80652460"]
[{"$nulls":4},"Уфимский муниципальный район","Черкасский сельский совет","80652472"]
[{"$nulls":4},"Уфимский муниципальный район","Чесноковский сельский совет","80652473"]
[{"$nulls":4},"Уфимский муниципальный район","Шемякский сельский совет","80652475"]
[{"$nulls":4},"Уфимский муниципальный район","Юматовский сельский совет","80652480"]
[{"$nulls":4},"Учалинский муниципальный район"," Все муниципальные образования","80653000"]
[{"$nulls":4},"Учалинский муниципальный район","Амангильдинский сельский совет","80653410"]
[{"$nulls":4},"Учалинский муниципальный район","Ахуновский сельский совет","80653415"]
[{"$nulls":4},"Учалинский муниципальный район","Буйдинский сельский совет","80653416"]
[{"$nulls":4},"Учалинский муниципальный район","Город Учалы","80653101"]
[{"$nulls":4},"Учалинский муниципальный район","Ильчигуловский сельский совет","80653420"]
[{"$nulls":4},"Учалинский муниципальный район","Ильчинский сельский совет","80653425"]
[{"$nulls":4},"Учалинский муниципальный район","Имангуловский сельский совет","80653430"]
[{"$nulls":4},"Учалинский муниципальный район","Кирябинский сельский совет","80653440"]
[{"$nulls":4},"Учалинский муниципальный район","Кунакбаевский сельский совет","80653445"]
[{"$nulls":4},"Учалинский муниципальный район","Мансуровский сельский совет","80653449"]
[{"$nulls":4},"Учалинский муниципальный район","Миндякский сельский совет","80653448"]
[{"$nulls":4},"Учалинский муниципальный район","Наурузовский сельский совет","80653450"]
[{"$nulls":4},"Учалинский муниципальный район","Новобайрамгуловский сельский совет","80653455"]
[{"$nulls":4},"Учалинский муниципальный район","Поляковский сельский совет","80653465"]
[{"$nulls":4},"Учалинский муниципальный район","Сафаровский сельский совет","80653470"]
[{"$nulls":4},"Учалинский муниципальный район","Тунгатаровский сельский совет","80653484"]
[{"$nulls":4},"Учалинский муниципальный район","Уразовский сельский совет","80653488"]
[{"$nulls":4},"Учалинский муниципальный район","Уральский сельский совет","80653491"]
[{"$nulls":4},"Учалинский муниципальный район","Учалинский сельский совет","80653496"]
[{"$nulls":4},"Федоровский муниципальный район"," Все муниципальные образования","80654000"]
[{"$nulls":4},"Федоровский муниципальный район","Бала-Четырманский сельский совет","80654405"]
[{"$nulls":4},"Федоровский муниципальный район","Балыклинский сельский совет","80654410"]
[{"$nulls":4},"Федоровский муниципальный район","Булякаевский сельский совет","80654415"]
[{"$nulls":4},"Федоровский муниципальный район","Верхнеяушевский сельский совет","80654416"]
[{"$nulls":4},"Федоровский муниципальный район","Гончаровский сельский совет","80654417"]
[{"$nulls":4},"Федоровский муниципальный район","Дедовский сельский совет","80654420"]
[{"$nulls":4},"Федоровский муниципальный район","Денискинский сельский совет","80654425"]
[{"$nulls":4},"Федоровский муниципальный район","Каралачикский сельский совет","80654427"]
[{"$nulls":4},"Федоровский муниципальный район","Михайловский сельский совет","80654430"]
[{"$nulls":4},"Федоровский муниципальный район","Покровский сельский совет","80654440"]
[{"$nulls":4},"Федоровский муниципальный район","Пугачевский сельский совет","80654445"]
[{"$nulls":4},"Федоровский муниципальный район","Разинский сельский совет","80654450"]
[{"$nulls":4},"Федоровский муниципальный район","Теняевский сельский совет","80654455"]
[{"$nulls":4},"Федоровский муниципальный район","Федоровский сельский совет","80654460"]
[{"$nulls":4},"Хайбуллинский муниципальный район"," Все муниципальные образования","80655000"]
[{"$nulls":4},"Хайбуллинский муниципальный район","Абишевский сельский совет","80655405"]
[{"$nulls":4},"Хайбуллинский муниципальный район","Акъюловский сельский совет","80655410"]
[{"$nulls":4},"Хайбуллинский муниципальный район","Акъярский сельский совет","80655415"]
[{"$nulls":4},"Хайбуллинский муниципальный район","Антинганский сельский совет","80655420"]
[{"$nulls":4},"Хайбуллинский муниципальный район","Бурибайский сельский совет","80655424"]
[{"$nulls":4},"Хайбуллинский муниципальный район","Ивановский сельский совет","80655425"]
[{"$nulls":4},"Хайбуллинский муниципальный район","Маканский сельский совет","80655430"]
[{"$nulls":4},"Хайбуллинский муниципальный район","Новозирганский сельский совет","80655432"]
[{"$nulls":4},"Хайбуллинский муниципальный район","Самарский сельский совет","80655433"]
[{"$nulls":4},"Хайбуллинский муниципальный район","Таналыкский сельский совет","80655440"]
[{"$nulls":4},"Хайбуллинский муниципальный район","Татыр-Узякский сельский совет","80655435"]
[{"$nulls":4},"Хайбуллинский муниципальный район","Уфимский сельский совет","80655445"]
[{"$nulls":4},"Хайбуллинский муниципальный район","Федоровский сельский совет","80655450"]
[{"$nulls":4},"Хайбуллинский муниципальный район","Целинный сельский совет","80655455"]
[{"$nulls":4},"Чекмагушевский муниципальный район"," Все муниципальные образования","80656000"]
[{"$nulls":4},"Чекмагушевский муниципальный район","Башировский сельский совет","80656410"]
[{"$nulls":4},"Чекмагушевский муниципальный район","Имянликулевский сельский совет","80656415"]
[{"$nulls":4},"Чекмагушевский муниципальный район","Калмашбашевский сельский совет","80656420"]
[{"$nulls":4},"Чекмагушевский муниципальный район","Новобалтачевский сельский совет","80656425"]
[{"$nulls":4},"Чекмагушевский муниципальный район","Новокутовский сельский совет","80656435"]
[{"$nulls":4},"Чекмагушевский муниципальный район","Рапатовский сельский совет","80656440"]
[{"$nulls":4},"Чекмагушевский муниципальный район","Резяповский сельский совет","80656445"]
[{"$nulls":4},"Чекмагушевский муниципальный район","Старокалмашевский сельский совет","80656450"]
[{"$nulls":4},"Чекмагушевский муниципальный район","Тайняшевский сельский совет","80656455"]
[{"$nulls":4},"Чекмагушевский муниципальный район","Тузлукушевский сельский совет","80656460"]
[{"$nulls":4},"Чекмагушевский муниципальный район","Урнякский сельский совет","80656465"]
[{"$nulls":4},"Чекмагушевский муниципальный район","Чекмагушевский сельский совет","80656470"]
[{"$nulls":4},"Чекмагушевский муниципальный район","Юмашевский сельский совет","80656475"]
[{"$nulls":4},"Чишминский муниципальный район"," Все муниципальные образования","80657000"]
[{"$nulls":4},"Чишминский муниципальный район","Алкинский сельский совет","80657405"]
[{"$nulls":4},"Чишминский муниципальный район","Аровский сельский совет","80657410"]
[{"$nulls":4},"Чишминский муниципальный район","Арслановский сельский совет","80657415"]
[{"$nulls":4},"Чишминский муниципальный район","Дмитриевский сельский совет","80657420"]
[{"$nulls":4},"Чишминский муниципальный район","Дурасовский сельский совет","80657425"]
[{"$nulls":4},"Чишминский муниципальный район","Енгалышевский сельский совет","80657430"]
[{"$nulls":4},"Чишминский муниципальный район","Еремеевский сельский совет","80657435"]
[{"$nulls":4},"Чишминский муниципальный район","Ибрагимовский сельский совет","80657440"]
[{"$nulls":4},"Чишминский муниципальный район","Кара-Якуповский сельский совет","80657445"]
[{"$nulls":4},"Чишминский муниципальный район","Лесной сельский совет","80657446"]
[{"$nulls":4},"Чишминский муниципальный район","Новотроицкий сельский совет","80657450"]
[{"$nulls":4},"Чишминский муниципальный район","Сафаровский сельский совет","80657455"]
[{"$nulls":4},"Чишминский муниципальный район","Чишминский поссовет","80657151"]
[{"$nulls":4},"Чишминский муниципальный район","Чишминский сельский совет","80657465"]
[{"$nulls":4},"Чишминский муниципальный район","Чувалкиповский сельский совет","80657470"]
[{"$nulls":4},"Чишминский муниципальный район","Шингак-Кульский сельский совет","80657475"]
[{"$nulls":4},"Шаранский муниципальный район"," Все муниципальные образования","80658000"]
[{"$nulls":4},"Шаранский муниципальный район","Акбарисовский сельский совет","80658405"]
[{"$nulls":4},"Шаранский муниципальный район","Базгиевский сельский совет","80658410"]
[{"$nulls":4},"Шаранский муниципальный район","Дмитриево-Полянский сельский совет","80658415"]
[{"$nulls":4},"Шаранский муниципальный район","Дюртюлинский сельский совет","80658420"]
[{"$nulls":4},"Шаранский муниципальный район","Зириклинский сельский совет","80658425"]
[{"$nulls":4},"Шаранский муниципальный район","Мичуринский сельский совет","80658430"]
[{"$nulls":4},"Шаранский муниципальный район","Нижнезаитовский сельский совет","80658435"]
[{"$nulls":4},"Шаранский муниципальный район","Нижнеташлинский сельский совет","80658440"]
[{"$nulls":4},"Шаранский муниципальный район","Нуреевский сельский совет","80658445"]
[{"$nulls":4},"Шаранский муниципальный район","Писаревский сельский совет","80658455"]
[{"$nulls":4},"Шаранский муниципальный район","Старотумбагушевский сельский совет","80658465"]
[{"$nulls":4},"Шаранский муниципальный район","Чалмалинский сельский совет","80658475"]
[{"$nulls":4},"Шаранский муниципальный район","Шаранский сельский совет","80658485"]
[{"$nulls":4},"Янаульский муниципальный район"," Все муниципальные образования","80659000"]
[{"$nulls":4},"Янаульский муниципальный район","Асавдыбашский сельский совет","80659410"]
[{"$nulls":4},"Янаульский муниципальный район","Байгузинский сельский совет","80659415"]
[{"$nulls":4},"Янаульский муниципальный район","Воядинский сельский совет","80659420"]
[{"$nulls":4},"Янаульский муниципальный район","Город Янаул","80659101"]
[{"$nulls":4},"Янаульский муниципальный район","Ижболдинский сельский совет","80659430"]
[{"$nulls":4},"Янаульский муниципальный район","Истякский сельский совет","80659435"]
[{"$nulls":4},"Янаульский муниципальный район","Иткинеевский сельский совет","80659440"]
[{"$nulls":4},"Янаульский муниципальный район","Кармановский сельский совет","80659445"]
[{"$nulls":4},"Янаульский муниципальный район","Кисак-Каинский сельский совет","80659450"]
[{"$nulls":4},"Янаульский муниципальный район","Максимовский сельский совет","80659453"]
[{"$nulls":4},"Янаульский муниципальный район","Месягутовский сельский совет","80659455"]
[{"$nulls":4},"Янаульский муниципальный район","Новоартаульский сельский совет","80659460"]
[{"$nulls":4},"Янаульский муниципальный район","Орловский сельский совет","80659465"]
[{"$nulls":4},"Янаульский муниципальный район","Первомайский сельский совет","80659470"]
[{"$nulls":4},"Янаульский муниципальный район","Сандугачевский сельский совет","80659475"]
[{"$nulls":4},"Янаульский муниципальный район","Староваряшский сельский совет","80659480"]
[{"$nulls":4},"Янаульский муниципальный район","Старокудашевский сельский совет","80659485"]
[{"$nulls":4},"Янаульский муниципальный район","Шудекский сельский совет","80659490"]
[{"$nulls":4},"Янаульский муниципальный район","Ямадинский сельский совет","80659495"]

{"sheet":"Reference","index":16,"n_rows":13,"n_cols":5,"rows_kept":13,"hidden":true}
["http://92.242.46.82/UserFile/Download?guid=","Да/нет\n(BOOL)","Тип отчета","Источник финансирования\nfinancial source","Вид регулируемой деятельности"]
[null,"да","Первичное раскрытие информации","федеральный бюджет","производство тепловой энергии (мощности) в режиме комбинированной выработки электрической и тепловой энергии источниками тепловой энергии с установленной генерирующей мощностью производства электрической энергии 25 МВт и более"]
[null,"нет","Корректировка ранее раскрытой информации","бюджет субъекта РФ","производство тепловой энергии (мощности) в режиме комбинированной выработки электрической и тепловой энергии источниками тепловой энергии с установленной генерирующей мощностью производства электрической энергии менее 25 МВт"]
[null,null,"Изменения в раскрытой информации","бюджет муниципального образования","производство тепловой энергии (мощности) не в режиме комбинированной выработки электрической и тепловой энергии источниками тепловой энергии"]
[{"$nulls":3},"средства внебюджетных фондов","производство теплоносителя"]
[{"$nulls":3},"кредиты банков","передача тепловой энергии и теплоносителя"]
[{"$nulls":3},"кредиты иностранных банков","сбыт тепловой энергии и теплоносителя"]
[{"$nulls":3},"заемные средства других организаций","подключение к системе теплоснабжения"]
[{"$nulls":3},"прибыль, направляемая на инвестиции","поддержание резервной тепловой мощности при отсутствии потребления тепловой энергии"]
[{"$nulls":3},"амортизация"]
[{"$nulls":3},"инвестиционная надбавка к тарифу"]
[{"$nulls":3},"плата за подключение"]
[{"$nulls":3},"прочие средства"]

{"sheet":"SheetList","index":17,"n_rows":35,"n_cols":8,"rows_kept":35,"hidden":true,"merged":[[34,3,37,7]]}
["Расчетные листы","Скрытые листы"]
["Инструкция","Columns"]
["Титульный","Rows"]
["Параметры","Reference"]
["Показатели","SheetList"]
["Товары и услуги","RegistryMunicipal"]
["Потребительские характеристики"]
["Инвестиционная программа"]
["Изменения инвест. программы"]
["Ссылки на публикации"]
["Сведения об изменениях"]
["Комментарий"]
["Ошибки и предупреждения"]
{"$rows_empty":9}
[{"$nulls":7},"*"]
[]
[]
[]
[]
[]
[]
[{"$nulls":7},"*"]
[]
[]
[]
[]
[{"$nulls":3},"* кнопки \"Сделать образец\" и \"Сделать шаблон\" не проверяют правильность листов с тарифами и листа \"Комментарий\". Рекомендуется проверить эти листы вручную перед сохранением."]